{"text_format":"1","workbook":"xlsx","n_sheets":12,"sheets":["Ingreso","GF-FT-42","GFI-FT-25","RETENCIÓN","GF-FT-02","GF-FT-02 (2do Informe)","GF-FT-02 (3er Informe)","IDIGER_CUENTA DE COBRO","GF-FT-41","POPULAR_DEC DEDUCCIONES","POPULAR_CUENTA DE COBRO","POPULAR_S.S."],"not_rendered":{"charts":0,"images":4,"macros":1,"external_links":5,"defined_names":75,"comments":1,"pivot_tables":0},"unopened":[],"bounds":{"document_bytes":16777216,"sheet_cells":100000,"rows_first":2000,"rows_last":500,"rows_between":2000,"halvings":0,"cell_chars":16384,"cell_head_chars":4096},"cells_cut":0,"cells_raw":0,"read":"whole","date_system":"1900"}

{"sheet":"Ingreso","index":0,"n_rows":162,"n_cols":35,"rows_kept":162,"cut":false,"hidden":false,"merged":[[25,1,25,2],[24,1,24,2],[64,1,64,2],[64,3,64,5],[121,1,121,2],[121,4,121,5],[15,3,15,5],[17,1,17,2],[17,3,17,5],[22,1,22,2],[23,1,23,2],[21,3,21,5],[18,1,18,2],[31,1,31,2],[30,1,30,2],[21,1,21,2],[61,1,61,2],[62,1,62,2],[63,1,63,2],[67,3,67,5],[63,3,63,5],[62,3,62,5],[66,3,66,5],[46,1,46,2],[34,3,34,5],[46,3,46,5],[66,1,66,2],[55,1,55,2],[54,1,54,2],[49,1,49,2],[48,1,48,5],[56,3,56,5],[65,1,65,2],[57,3,57,5],[35,3,35,5],[39,1,39,2],[39,3,39,5],[37,1,37,2],[38,1,38,2],[41,1,41,2],[43,1,43,2],[44,1,44,2],[42,1,42,2],[40,1,40,2],[33,3,33,5],[36,1,36,2],[67,1,67,2],[75,3,75,6],[58,3,58,5],[61,3,61,5],[16,3,16,5],[32,3,32,5],[29,3,29,5],[28,3,28,5],[27,3,27,5],[24,3,24,5],[19,3,19,5],[54,3,54,5],[55,3,55,5],[72,3,72,6],[71,3,71,6],[42,3,42,5],[18,3,18,5],[31,3,31,5],[25,3,25,5],[43,3,43,5],[44,3,44,5],[41,3,41,5],[39,7,40,7],[56,1,60,1],[50,1,53,1],[0,1,2,1],[0,3,0,7],[1,3,1,7],[2,3,2,7],[47,1,47,7],[40,3,40,4],[4,1,4,5],[11,1,11,2],[16,1,16,2],[19,1,19,2],[20,1,20,2],[15,1,15,2],[11,3,11,5],[8,3,8,5],[7,3,7,5],[6,3,6,5],[5,3,5,5],[5,1,5,2],[6,1,6,2],[7,1,7,2],[8,1,8,2],[68,1,68,2],[68,3,68,5],[9,1,9,2],[9,3,9,5],[12,1,12,2],[12,3,12,5],[10,1,10,2],[10,3,10,5],[13,1,13,2],[13,3,13,5],[14,1,14,2],[26,1,26,2],[26,3,26,5],[45,1,45,2],[45,3,45,5],[27,1,27,2],[28,1,28,2],[29,1,29,2],[33,1,33,2],[34,1,34,2],[32,1,32,2],[38,3,38,5],[37,3,37,5],[35,1,35,2]]}
[null,"Convenciones:",null,"Casillas que solo deben diligenciarse para el primer cobro."]
[null,null,null,"Casillas que pueden ser objeto de cambio mensualmente."]
[null,null,null,"Casillas que se diligencian automáticamente."]
[]
[null,"DATOS BÁSICOS DE CONTRATISTA Y CONTRATO",null,null,null,null,null,"INSTRUCTIVO - DATOS BASICOS DEL CONTRATISTA Y CONTRATO"]
[null,"Nombre",null,null,null,null,null,"Registre el nombre completo del contratista."]
[null,"Cédula",null,null,null,null,null,"Registre el número de identificación del contratista (NIT o Cédula de Ciudadanía) con sus puntos, guiones o separadores. (P. Ej. 80'843.041; 800.197.674-1)",null,null,null,null,null,null,1,"Un","Uno",null,{"$f":"INT((D38-(INT(D38/1000000000000000)*1000000000000000))/1000000000000)","v":0},"Centenas",{"$f":"INT(S7/100)*100","v":0},{"$f":"IF(AND(U7=100,U8=0,U9=0),IF(U7=0,\" \",LOOKUP(U7,O7:Q75,P7:P75)),IF(U7=0,\" \",LOOKUP(U7,O7:Q75,Q7:Q75)))","v":" "},null,"Billones",null,1,"Un","Uno",null,{"$f":"INT((D55-(INT(D55/1000000000000000)*1000000000000000))/1000000000000)","v":0},"Centenas",{"$f":"INT(AD7/100)*100","v":0},{"$f":"IF(AND(AF7=100,AF8=0,AF9=0),IF(AF7=0,\" \",LOOKUP(AF7,Z7:AB75,AA7:AA75)),IF(AF7=0,\" \",LOOKUP(AF7,Z7:AB75,AB7:AB75)))","v":" "},null,"Billones"]
[null,"Lugar de Expedición",null,null,null,null,null,"Registre la ciudad de expedición del documento de identificación.",null,null,null,null,null,null,2,"Dos","Dos",null,{"$f":"+S7-U7","v":0},"Decenas",{"$f":"INT(S8/10)*10","v":0},{"$f":"IF(OR(U8=10,U8=20),LOOKUP(S8,O7:Q75,Q7:Q75),IF(AND(U8=100,U9=0,U12=0),IF(U8=0,\" \",LOOKUP(U8,O7:Q75,P7:P75)),IF(U8=0,\" \",LOOKUP(U8,O7:Q75,Q7:Q75))))","v":" "},{"$f":"IF(U9=0,\" \",IF(AND(U8>20,U8<=90),\"y\",\" \"))","v":" "},null,null,2,"Dos","Dos",null,{"$f":"+AD7-AF7","v":0},"Decenas",{"$f":"INT(AD8/10)*10","v":0},{"$f":"IF(OR(AF8=10,AF8=20),LOOKUP(AD8,Z7:AB75,AB7:AB75),IF(AND(AF8=100,AF9=0,AF12=0),IF(AF8=0,\" \",LOOKUP(AF8,Z7:AB75,AA7:AA75)),IF(AF8=0,\" \",LOOKUP(AF8,Z7:AB75,AB7:AB75))))","v":" "},{"$f":"IF(AF9=0,\" \",IF(AND(AF8>20,AF8<=90),\"y\",\" \"))","v":" "}]
[null,"Dirección de Residencia",null,null,null,null,null,"Registre la dirección completa de residencia del contratista. Se debe actualizar el RUT y registrar aquí la información como quedará en el mismo.",null,null,null,null,null,null,3,"Tres","Tres",null,{"$f":"+S8-U8","v":0},"Unidades",{"$f":"INT(S9)","v":0},{"$f":"IF(OR(U8=10,U8=20),\" \",IF(AND(U9=100,U12=0,U17=0),IF(U9=0,\" \",LOOKUP(U9,O7:Q75,P7:P75)),IF(U9=0,\" \",LOOKUP(U9,O7:Q75,P7:P75))))","v":" "},{"$f":"IF(AND(U7=0,U8=0,U9=1),\"Billón\",IF(SUM(U7:U9)=0,\" \",\"Billones\"))","v":" "},null,null,3,"Tres","Tres",null,{"$f":"+AD8-AF8","v":0},"Unidades",{"$f":"INT(AD9)","v":0},{"$f":"IF(OR(AF8=10,AF8=20),\" \",IF(AND(AF9=100,AF12=0,AF17=0),IF(AF9=0,\" \",LOOKUP(AF9,Z7:AB75,AA7:AA75)),IF(AF9=0,\" \",LOOKUP(AF9,Z7:AB75,AA7:AA75))))","v":" "},{"$f":"IF(AND(AF7=0,AF8=0,AF9=1),\"Billón\",IF(SUM(AF7:AF9)=0,\" \",\"Billones\"))","v":" "}]
[null,"Ciudad de Residencia",null,null,null,null,null,"Registre la ciudad de residencia del contratista. Se debe actualizar el RUT y registrar aquí la información como quedará en el mismo."]
[null,"Código Postal",null,null,null,null,null,"Registre el código postal asociado a la dirección de residencia del contratista. Se debe actualizar el RUT y registrar aquí la información como quedará en el mismo."]
[null,"Teléfono",null,null,null,null,null,"Registre el número celular del contratista. Se debe actualizar el RUT y registrar aquí la información como quedará en el mismo.",null,null,null,null,null,null,4,"Cuatro","Cuatro",null,{"$f":"INT((D38-(INT(D38/1000000000000)*1000000000000))/1000000000)","v":0},"Centenas",{"$f":"INT(S12/100)*100","v":0},{"$f":"IF(AND(U12=100,U17=0,U19=0),IF(U12=0,\" \",LOOKUP(U12,O7:Q75,P7:P75)),IF(U12=0,\" \",LOOKUP(U12,O7:Q75,Q7:Q75)))","v":" "},null,"Miles de Millones",null,4,"Cuatro","Cuatro",null,{"$f":"INT((D55-(INT(D55/1000000000000)*1000000000000))/1000000000)","v":0},"Centenas",{"$f":"INT(AD12/100)*100","v":0},{"$f":"IF(AND(AF12=100,AF17=0,AF19=0),IF(AF12=0,\" \",LOOKUP(AF12,Z7:AB75,AA7:AA75)),IF(AF12=0,\" \",LOOKUP(AF12,Z7:AB75,AB7:AB75)))","v":" "},null,"Miles de Millones"]
[null,"Correo Electrónico",null,null,null,null,null,"Registre la dirección de correo electrónico personal de contacto. Se debe actualizar el RUT y registrar aquí la información como quedará en el mismo."]
[null,"Ciudad donde se prestó el servicio o se adquirió el bien",null,null,null,null,null,"Registre la ciudad donde el contratista prestó el servicio o la Entidad adquirió el bien suministrado. Se debe actualizar el RUT y registrar aquí la información como quedará en el mismo."]
[null,"NIT (Como aparece en el RUT)",null,null,"Digito de Verificación",null,null,"Registre el NIT con el digito de verificación, como aparece en el RUT. Se debe actualizar el RUT y registrar aquí la información como quedará en el mismo."]
[null,"Unidad Ejecutora",null,null,null,null,null,"Seleccione de la lista desplegable la Unidad Ejecutora (IDIGER o FONDIGER), para que se muestren las hojas correspondientes para el objeto de cobro"]
[null,"Actividad Económica",null,null,null,null,null,"Registre la actividad económica que aparece en el Registro Único Tributario RUT actualizado al año 2024",null,null,null,null,null,null,5,"Cinco","Cinco",null,{"$f":"+S12-U12","v":0},"Decenas",{"$f":"INT(S17/10)*10","v":0},{"$f":"IF(OR(U17=10,U17=20),LOOKUP(S17,O7:Q75,Q7:Q75),IF(AND(U17=100,U19=0,U20=0),IF(U17=0,\" \",LOOKUP(U17,O7:Q75,P7:P75)),IF(U17=0,\" \",LOOKUP(U17,O7:Q75,Q7:Q75))))","v":" "},{"$f":"IF(U19=0,\" \",IF(AND(U17>20,U17<=90),\"y\",\" \"))","v":" "},null,null,5,"Cinco","Cinco",null,{"$f":"+AD12-AF12","v":0},"Decenas",{"$f":"INT(AD17/10)*10","v":0},{"$f":"IF(OR(AF17=10,AF17=20),LOOKUP(AD17,Z7:AB75,AB7:AB75),IF(AND(AF17=100,AF19=0,AF20=0),IF(AF17=0,\" \",LOOKUP(AF17,Z7:AB75,AA7:AA75)),IF(AF17=0,\" \",LOOKUP(AF17,Z7:AB75,AB7:AB75))))","v":" "},{"$f":"IF(AF19=0,\" \",IF(AND(AF17>20,AF17<=90),\"y\",\" \"))","v":" "}]
[null,"Tarifa de Retención por ICA",null,null,null,null,null,"Registre la tarifa de retención que aplica por ICA especificada en el RIT"]
[null,"Régimen",null,null,null,null,null,"Seleccione de la lista desplegable el régimen al que pertenece",null,null,null,null,null,null,6,"Seis","Seis",null,{"$f":"+S17-U17","v":0},"Unidades",{"$f":"INT(S19)","v":0},{"$f":"IF(AND(U12=0,U17=0,U19=1),\" \",IF(AND(U7=0,U8=0,U9=0,U12=0,U17=0,U19=1),\" \",IF(OR(U17=10,U17=20),\" \",IF(AND(U19=100,U20=0,U21=0),IF(U19=0,\" \",LOOKUP(U19,O7:Q75,P7:P75)),IF(U19=0,\" \",LOOKUP(U19,O7:Q75,P7:P75))))))","v":" "},{"$f":"IF(AND(U12=0,U17=0,U19=1),\"Mil\",IF(SUM(U12:U19)=0,\" \",\"Mil\"))","v":" "},null,null,6,"Seis","Seis",null,{"$f":"+AD17-AF17","v":0},"Unidades",{"$f":"INT(AD19)","v":0},{"$f":"IF(AND(AF12=0,AF17=0,AF19=1),\" \",IF(AND(AF7=0,AF8=0,AF9=0,AF12=0,AF17=0,AF19=1),\" \",IF(OR(AF17=10,AF17=20),\" \",IF(AND(AF19=100,AF20=0,AF21=0),IF(AF19=0,\" \",LOOKUP(AF19,Z7:AB75,AA7:AA75)),IF(AF19=0,\" \",LOOKUP(AF19,Z7:AB75,AA7:AA75))))))","v":" "},{"$f":"IF(AND(AF12=0,AF17=0,AF19=1),\"Mil\",IF(SUM(AF12:AF19)=0,\" \",\"Mil\"))","v":" "}]
[null,"Tipo de Contrato",null,null,null,null,null,"Seleccione el tipo de contrato, si es profesional o de apoyo.",null,null,null,null,null,null,7,"Siete","Siete",null,{"$f":"INT((D38-(INT(D38/1000000000)*1000000000))/1000000)","v":0},"Centenas",{"$f":"INT(S20/100)*100","v":0},{"$f":"IF(AND(U20=100,U21=0,U22=0),IF(U20=0,\" \",LOOKUP(U20,O7:Q75,P7:P75)),IF(U20=0,\" \",LOOKUP(U20,O7:Q75,Q7:Q75)))","v":" "},null,"Millones",null,7,"Siete","Siete",null,{"$f":"INT((D55-(INT(D55/1000000000)*1000000000))/1000000)","v":0},"Centenas",{"$f":"INT(AD20/100)*100","v":0},{"$f":"IF(AND(AF20=100,AF21=0,AF22=0),IF(AF20=0,\" \",LOOKUP(AF20,Z7:AB75,AA7:AA75)),IF(AF20=0,\" \",LOOKUP(AF20,Z7:AB75,AB7:AB75)))","v":" "},null,"Millones"]
[null,"Contrato No.",null,null,"Año del Contrato",null,null,"Registre el Número y Año del contrato objeto de cobro.",null,null,null,null,null,null,8,"Ocho","Ocho",null,{"$f":"+S20-U20","v":0},"Decenas",{"$f":"INT(S21/10)*10","v":0},{"$f":"IF(OR(U21=10,U21=20),LOOKUP(S21,O7:Q75,Q7:Q75),IF(AND(U21=100,U22=0,U29=0),IF(U21=0,\" \",LOOKUP(U21,O7:Q75,P7:P75)),IF(U21=0,\" \",LOOKUP(U21,O7:Q75,Q7:Q75))))","v":" "},{"$f":"IF(U22=0,\" \",IF(AND(U21>20,U21<=90),\"y\",\" \"))","v":" "},null,null,8,"Ocho","Ocho",null,{"$f":"+AD20-AF20","v":0},"Decenas",{"$f":"INT(AD21/10)*10","v":0},{"$f":"IF(OR(AF21=10,AF21=20),LOOKUP(AD21,Z7:AB75,AB7:AB75),IF(AND(AF21=100,AF22=0,AF29=0),IF(AF21=0,\" \",LOOKUP(AF21,Z7:AB75,AA7:AA75)),IF(AF21=0,\" \",LOOKUP(AF21,Z7:AB75,AB7:AB75))))","v":" "},{"$f":"IF(AF22=0,\" \",IF(AND(AF21>20,AF21<=90),\"y\",\" \"))","v":" "}]
[null,"Valor total de Contrato",null,null,null,null,null,"Registre el valor total del contrato objeto del cobro.",null,null,null,null,null,null,9,"Nueve","Nueve",null,{"$f":"+S21-U21","v":0},"Unidades",{"$f":"INT(S22)","v":0},{"$f":"IF(AND(U20=0,U21=0,U22=1),\"Un\",IF(AND(U12=0,U17=0,U19=0,U20=0,U21=0,U22=1),\" \",IF(OR(U21=10,U21=20),\" \",IF(AND(U22=100,U29=0,U43=0),IF(U22=0,\" \",LOOKUP(U22,O7:Q75,P7:P75)),IF(U22=0,\" \",LOOKUP(U22,O7:Q75,P7:P75))))))","v":" "},{"$f":"IF(AND(OR(U12>0,U17>0,U19>0),U20=0,U21=0,U22=0),\"Millones\",IF(AND(U12=0,U17=0,U19=0,U20=0,U21=0,U22=1),\"Millón\",IF(SUM(U20:U22)=0,\" \",\"Millones\")))","v":" "},null,null,9,"Nueve","Nueve",null,{"$f":"+AD21-AF21","v":0},"Unidades",{"$f":"INT(AD22)","v":0},{"$f":"IF(AND(AF20=0,AF21=0,AF22=1),\"Un\",IF(AND(AF12=0,AF17=0,AF19=0,AF20=0,AF21=0,AF22=1),\" \",IF(OR(AF21=10,AF21=20),\" \",IF(AND(AF22=100,AF29=0,AF43=0),IF(AF22=0,\" \",LOOKUP(AF22,Z7:AB75,AA7:AA75)),IF(AF22=0,\" \",LOOKUP(AF22,Z7:AB75,AA7:AA75))))))","v":" "},{"$f":"IF(AND(OR(AF12>0,AF17>0,AF19>0),AF20=0,AF21=0,AF22=0),\"Millones\",IF(AND(AF12=0,AF17=0,AF19=0,AF20=0,AF21=0,AF22=1),\"Millón\",IF(SUM(AF20:AF22)=0,\" \",\"Millones\")))","v":" "}]
[null,"Fecha de Inicio",null,null,null,null,null,"Registre la fecha de inicio de ejecución del contrato registrada en SECOP II.",null,null,null,null,null,null,10,"Diez","Diez",null,{"$f":"INT((D38-(INT(D38/1000000)*1000000))/1000)","v":0},"Centenas",{"$f":"INT(S23/100)*100","v":0},{"$f":"IF(AND(U23=100,U24=0,U25=0),IF(U23=0,\" \",LOOKUP(U23,O7:Q75,P7:P75)),IF(U23=0,\" \",LOOKUP(U23,O7:Q75,Q7:Q75)))","v":" "},null,"Miles",null,10,"Diez","Diez",null,{"$f":"INT((D55-(INT(D55/1000000)*1000000))/1000)","v":0},"Centenas",{"$f":"INT(AD23/100)*100","v":0},{"$f":"IF(AND(AF23=100,AF24=0,AF25=0),IF(AF23=0,\" \",LOOKUP(AF23,Z7:AB75,AA7:AA75)),IF(AF23=0,\" \",LOOKUP(AF23,Z7:AB75,AB7:AB75)))","v":" "},null,"Miles"]
[null,"Fecha Fin",null,null,null,null,null,"Registre la fecha de terminación del contrato teniendo en cuenta la fecha de SECOP II y las modificaciones que este haya tenido (plazos de suspensión y reinicio del contrato) ",null,null,null,null,null,null,11,"Once","Once",null,{"$f":"+S23-U23","v":0},"Decenas",{"$f":"INT(S24/10)*10","v":0},{"$f":"IF(OR(U24=10,U24=20),LOOKUP(S24,O7:Q75,Q7:Q75),IF(AND(U24=100,U25=0,T39=0),IF(U24=0,\" \",LOOKUP(U24,O7:Q75,P7:P75)),IF(U24=0,\" \",LOOKUP(U24,O7:Q75,Q7:Q75))))","v":" "},{"$f":"IF(U25=0,\" \",IF(AND(U24>20,U24<=90),\"y\",\" \"))","v":" "},null,null,11,"Once","Once",null,{"$f":"+AD23-AF23","v":0},"Decenas",{"$f":"INT(AD24/10)*10","v":0},{"$f":"IF(OR(AF24=10,AF24=20),LOOKUP(AD24,Z7:AB75,AB7:AB75),IF(AND(AF24=100,AF25=0,AE39=0),IF(AF24=0,\" \",LOOKUP(AF24,Z7:AB75,AA7:AA75)),IF(AF24=0,\" \",LOOKUP(AF24,Z7:AB75,AB7:AB75))))","v":" "},{"$f":"IF(AF25=0,\" \",IF(AND(AF24>20,AF24<=90),\"y\",\" \"))","v":" "}]
[null,"Supervisor",null,null,null,null,null,"Registre el nombre completo del supervisor del contrato objeto de pago. En caso de tener mas de un supervisor en el mes, este es el que cubrió la primera parte del mes.",null,null,null,null,null,null,12,"Doce","Doce",null,{"$f":"+S24-U24","v":0},"Unidades",{"$f":"INT(S25)","v":0},{"$f":"IF(AND(U23=0,U24=0,U25=1),\" \",IF(AND(U20=0,U21=0,U22=0,U23=0,U24=0,U25=1),\" \",IF(OR(U24=10,U24=20),\" \",IF(AND(U25=100,T39=0,T40=0),IF(U25=0,\" \",LOOKUP(U25,O7:Q75,P7:P75)),IF(U25=0,\" \",LOOKUP(U25,O7:Q75,P7:P75))))))","v":" "},{"$f":"IF(AND(U23=0,U24=0,U25=1),\"Mil\",IF(SUM(U23:U25)=0,\" \",\"Mil\"))","v":" "},null,null,12,"Doce","Doce",null,{"$f":"+AD24-AF24","v":0},"Unidades",{"$f":"INT(AD25)","v":0},{"$f":"IF(AND(AF23=0,AF24=0,AF25=1),\" \",IF(AND(AF20=0,AF21=0,AF22=0,AF23=0,AF24=0,AF25=1),\" \",IF(OR(AF24=10,AF24=20),\" \",IF(AND(AF25=100,AE39=0,AE40=0),IF(AF25=0,\" \",LOOKUP(AF25,Z7:AB75,AA7:AA75)),IF(AF25=0,\" \",LOOKUP(AF25,Z7:AB75,AA7:AA75))))))","v":" "},{"$f":"IF(AND(AF23=0,AF24=0,AF25=1),\"Mil\",IF(SUM(AF23:AF25)=0,\" \",\"Mil\"))","v":" "}]
[null,"Apoyo a la Supervisión",null,null,null,null,null,"Registre el nombre completo del apoyo a la supervisión del contrato objeto de pago. (En caso de no existir apoyo a la supervisión, dejar la casilla en blanco)"]
[null,"Supervisor Encargado o que Autoriza el Pago",null,null,null,null,null,"Registre el nombre completo del supervisor encargado o que en la fecha de la radicación de su cuenta de cobro es quien, realmente aprueba el pago (firma la autorización de pago GT-FT-42). (En caso de que el supervisor encargado o que autoriza el pago sea el mismo supervisor de la fila 20, se debe dejar la casilla en blanco)"]
[null,"Área o Dependencia",null,null,null,null,null,"Registre la dependencia donde se desarrolla el objeto contractual "]
[null,{"$f":"IF(D16=\"IDIGER\",\"Proyecto\",IF(D16=\"FONDIGER\",\"Programa\",\"Proyecto / Programa\"))","v":"Proyecto / Programa"},null,null,null,null,null,"Seleccione de la lista desplegable el número y nombre del programa (FONDIGER) o proyecto (IDIGER) donde se generan los recursos para el pago. ",null,null,null,null,null,null,13,"Trece","Trece",null,{"$f":"INT((D38-(INT(D38/1000)*1000))/1)","v":0},"Centenas",{"$f":"INT(S29/100)*100","v":0},{"$f":"IF(AND(U29=100,U30=0,U34=0),IF(U29=0,\" \",LOOKUP(U29,O7:Q75,P7:P75)),IF(U29=0,\" \",LOOKUP(U29,O7:Q75,Q7:Q75)))","v":" "},null,"Cientos",null,13,"Trece","Trece",null,{"$f":"INT((D55-(INT(D55/1000)*1000))/1)","v":0},"Centenas",{"$f":"INT(AD29/100)*100","v":0},{"$f":"IF(AND(AF29=100,AF30=0,AF34=0),IF(AF29=0,\" \",LOOKUP(AF29,Z7:AB75,AA7:AA75)),IF(AF29=0,\" \",LOOKUP(AF29,Z7:AB75,AB7:AB75)))","v":" "},null,"Cientos"]
[null,"Objeto Contractual",null,null,null,null,null,"En este campo debe transcribir el objeto contractual registrado en SECOP II.",null,null,null,null,null,null,14,"Catorce","Catorce",null,{"$f":"+S29-U29","v":0},"Decenas",{"$f":"INT(S30/10)*10","v":0},{"$f":"IF(OR(U30=10,U30=20),LOOKUP(S30,O7:Q75,Q7:Q75),IF(AND(U30=100,U34=0,U52=0),IF(U30=0,\" \",LOOKUP(U30,O7:Q75,P7:P75)),IF(U30=0,\" \",LOOKUP(U30,O7:Q75,Q7:Q75))))","v":" "},{"$f":"IF(U34=0,\" \",IF(AND(U30>20,U30<=90),\"y\",\" \"))","v":" "},null,null,14,"Catorce","Catorce",null,{"$f":"+AD29-AF29","v":0},"Decenas",{"$f":"INT(AD30/10)*10","v":0},{"$f":"IF(OR(AF30=10,AF30=20),LOOKUP(AD30,Z7:AB75,AB7:AB75),IF(AND(AF30=100,AF34=0,AF52=0),IF(AF30=0,\" \",LOOKUP(AF30,Z7:AB75,AA7:AA75)),IF(AF30=0,\" \",LOOKUP(AF30,Z7:AB75,AB7:AB75))))","v":" "},{"$f":"IF(AF34=0,\" \",IF(AND(AF30>20,AF30<=90),\"y\",\" \"))","v":" "}]
[null,"Registro Presupuestal (RP)",null,null,"Año del Registro Presupuestal",null,null,"Registre el número del RP y año de acuerdo a la información publicado en SECOP II, en el numeral 6 Información presupuestal "]
[null,"Registro Presupuestal de Adición (RP Adición)",null,null,null,null,null,"Registre el número del RP y año de acuerdo a la información publicado en SECOP II, en el numeral 6 Información presupuestal "]
[null,"N° de Cuenta Bancaria para consignar",null,null,null,null,null,"Registre el número de la cuenta bancaria a la cual se le debe realizar la transferencia."]
[null,"Banco","BANCO",null,null,null,null,"Registre el nombre de la entidad bancaria a la cual se le debe realizar la transferencia.",null,null,null,null,null,null,15,"Quince","Quince",null,{"$f":"+S30-U30","v":0},"Unidades",{"$f":"INT(S34)","v":0},{"$f":"IF(AND(U29=0,U30=0,U34=1),\"Un\",IF(AND(U23=0,U24=0,U25=0,U29=0,U30=0,U34=1),\" \",IF(OR(U30=10,U30=20),\" \",IF(AND(U34=100,U52=0,U53=0),IF(U34=0,\" \",LOOKUP(U34,O7:Q75,P7:P75)),IF(U34=0,\" \",LOOKUP(U34,O7:Q75,P7:P75))))))","v":" "},null,null,null,15,"Quince","Quince",null,{"$f":"+AD30-AF30","v":0},"Unidades",{"$f":"INT(AD34)","v":0},{"$f":"IF(AND(AF29=0,AF30=0,AF34=1),\"Un\",IF(AND(AF23=0,AF24=0,AF25=0,AF29=0,AF30=0,AF34=1),\" \",IF(OR(AF30=10,AF30=20),\" \",IF(AND(AF34=100,AF52=0,AF53=0),IF(AF34=0,\" \",LOOKUP(AF34,Z7:AB75,AA7:AA75)),IF(AF34=0,\" \",LOOKUP(AF34,Z7:AB75,AA7:AA75))))))","v":" "}]
[null,"Tipo de Cuenta",null,null,null,null,null,"Registre en este campo el tipo de cuenta que tiene con la entidad bancaria (Ahorros y/o corriente).",null,null,null,null,null,null,16,"Dieciséis","Dieciséis",null,null,null,null,null,null,null,null,16,"Dieciséis","Dieciséis"]
[null,"Cuentas para Rentas Exentas",null,null,null,null,null,"En caso de realizar un aporte a una cuenta para rentas exentas (Cuenta de Ahorro Fomento de la Construcción (AFC), o Administradoras de Fondos de Pensiones debe relacionarla de la lista o de lo contrario dejar la casilla en Blanco."]
[null,"N° de Cuenta AFC/AFP",null,null,"Nombre del Banco AFC/AFP",null,null,"En caso de realizar un aporte a una cuenta de Ahorro Fomento de la Construcción (AFC) o Administradoras de Fondos de Pensiones (AFP), debe relacionar el número de esta cuenta bancaria y el nombre del banco.",null,null,null,null,null,null,17,"Diecisiete","Diecisiete",null,null,null,null,null,null,null,null,17,"Diecisiete","Diecisiete"]
[null,"Monto para AFC/AFP",null,null,null,null,null,"En caso de tener un aporte a una cuenta de AFC - Ahorro Fomento de la Construcción (AFC) o Administradoras de Fondos de Pensiones (AFP), debe relacionar el valor en números que solicita transferir a la cuenta AFC/AFP. "]
[null,"Monto en Letras",null,{"$f":"IF(D38>0,TRIM(R43),\"\")","v":""},null,null,null,"En caso de tener un aporte a una cuenta de AFC - Ahorro Fomento de la Construcción (AFC) o Administradoras de Fondos de Pensiones (AFP), se genera automáticamente el valor en letras que solicita transferir a la cuenta AFC/AFP. ",null,null,null,null,null,null,18,"Dieciocho","Dieciocho",null,null,null,null,null,null,null,null,18,"Dieciocho","Dieciocho"]
[null,"Deducción por pago de intereses de Vivienda",null,null,null,null,null,"Ingrese el valor total deducible por intereses de crédito hipotecario pagados en el año inmediatamente anterior, de acuerdo a la certificación expedida por la entidad competente.  En caso de no tener esta deducción dejar el espacio sin diligenciar.\nEn caso de que la deducción sea compartida, por favor especificar el porcentaje de deducción que a usted le aplica.",null,null,null,null,null,null,19,"Diecinueve","Diecinueve",null,null,null,null,null,null,null,null,19,"Diecinueve","Diecinueve"]
[null,"Deducción Compartida por pago de intereses de Vivienda"]
[null,"Deducción por pago de Medicina Prepagada",null,null,null,null,null,"Ingrese el valor total deducible efectivamente pagado por concepto de medicina prepagada en el año inmediatamente anterior, de acuerdo a la certificación expedida por la entidad competente.  En caso de no tener esta deducción dejar el espacio sin diligenciar."]
[null,"Teléfono",null,{"$f":"D12","v":0},null,null,null,"Se captura automáticamente el número de teléfono de la casilla D12.",null,null,null,null,null,null,20,"Veinte","Veinte",{"$f":"V7&\" \"&V8&\" \"&W8&\" \"&\" \"&V9&\" \"&W9&\" \"&V12&\" \"&V17&\" \"&W17&\" \"&\" \"&V19&\" \"&W19&\" \"&V20&\" \"&V21&\" \"&W21&\" \"&V22&\" \"&W22&\" \"&V23&\" \"&V24&\" \"&W24&\" \"&V25&\" \"&W25&\" \"&V29&\" \"&V30&\" \"&W30&\" \"&V34&\" \"&V45","v":"                                                  de Pesos M/Cte"},null,null,null,null,null,null,null,20,"Veinte","Veinte",{"$f":"AG7&\" \"&AG8&\" \"&AH8&\" \"&\" \"&AG9&\" \"&AH9&\" \"&AG12&\" \"&AG17&\" \"&AH17&\" \"&\" \"&AG19&\" \"&AH19&\" \"&AG20&\" \"&AG21&\" \"&AH21&\" \"&AG22&\" \"&AH22&\" \"&AG23&\" \"&AG24&\" \"&AH24&\" \"&AG25&\" \"&AH25&\" \"&AG29&\" \"&AG30&\" \"&AH30&\" \"&AG34&\" \"&AG45","v":"                                                  de Pesos M/Cte"}]
[null,"Nivel de riesgo para ARL",null,null,null,null,null,"Indique si de acuerdo a la clasificación de la ARL en contratista atiende a Nivel de Riesgo I, II, III, IV ó V.",null,null,null,null,null,null,21,"Veintiuno","Veintiun",null,null,null,null,null,null,null,null,21,"Veintiuno","Veintiun"]
[null,"El contratista aporta a Sistema de Pensiones",null,null,null,null,null,"Indique si el contratista debe aportar al sistema de pensiones",null,null,null,null,null,null,22,"Veintidós","Veintidós",null,null,null,null,{"$f":"IF(T46<>0,\"de Pesos M/Cte\",IF(D38=1,\"Peso M/Cte\",\"Pesos M/Cte\"))","v":"de Pesos M/Cte"},null,null,null,22,"Veintidós","Veintidós",null,null,null,null,{"$f":"IF(AE46<>0,\"de Pesos M/Cte\",IF(D55=1,\"Peso M/Cte\",\"Pesos M/Cte\"))","v":"de Pesos M/Cte"}]
[null,"Valor de Referencia de Salario Mínimo",null,1423500,null,null,null,"El salario mínimo mensual legal vigente se estableció de manera predeterminada. Este valor servirá de base para el cálculo de los aportes de pensión. (PARA EL AÑO 2025 EL SMMLV ES DE $1.423.500).",null,null,null,null,null,null,23,"Veintitrés","Veintitrés",null,{"$f":"D38/1000000","v":0},{"$f":"IF(S46=INT(S46),\"de Pesos M/Cte\",0)","v":"de Pesos M/Cte"},null,null,null,null,null,23,"Veintitrés","Veintitrés",null,{"$f":"D55/1000000","v":0},{"$f":"IF(AD46=INT(AD46),\"de Pesos M/Cte\",0)","v":"de Pesos M/Cte"}]
[null,"Valor de Referencia de UVT",null,49799,null,null,null,"La Unidad de Valor Tributario \"UVT\" se estableció de manera predeterminada. Este valor servirá de base para el cálculo de los aportes de pensión. (PARA EL AÑO 2025 EL VALOR DE LA UVT ES DE $49.799)."]
[]
[null,{"$f":"UPPER(\"datos de Periodo de CobrO\")","v":"DATOS DE PERIODO DE COBRO"},null,null,null,null,null,"INSTRUCTIVO - DATOS DEL PERIODO DE COBRO"]
[null,"Fecha de Presentación de Cobro o Factura",null,null,null,null,null,"Registre la fecha de presentación de la cuenta de cobro. "]
[null,"Periodo Facturado","Inicio",null,null,null,null,"Registre la fecha de inicio del periodo cobrado. (EN CASO DE PRESENTAR SUSPENSIÓN DE CONTRATO, PRESENTAR DOS (2) CUENTAS DE COBRO).",null,null,null,null,null,null,24,"Veinticuatro","Veinticuatro",null,null,null,null,null,null,null,null,24,"Veinticuatro","Veinticuatro"]
[null,null,"Fin",null,null,null,null,"Registre la fecha de terminación del periodo cobrado. (EN CASO DE PRESENTAR SUSPENSIÓN DE CONTRATO, PRESENTAR DOS (2) CUENTAS DE COBRO).",null,null,null,null,null,null,25,"Veinticinco","Veinticinco",null,null,null,null,null,null,null,null,25,"Veinticinco","Veinticinco"]
[null,null,"Inicio (después de suspensión)",null,null,null,null,"Registre la fecha de inicio del periodo cobrado después del reinicio. ",null,null,null,null,null,null,26,"Veintiséis","Veintiséis",null,null,null,null,null,null,null,null,26,"Veintiséis","Veintiséis"]
[null,null,"Fin (después de suspensión)",null,null,null,null,"Registre la fecha de terminación del periodo cobrado después del reinicio. ",null,null,null,null,null,null,27,"Veintisiete","Veintisiete",null,null,null,null,null,null,null,null,27,"Veintisiete","Veintisiete"]
[null,"Valor a Cobrar (Si es Responsable de IVA registre el valor con IVA incluido)",null,null,null,null,null,"Registre el valor a cobrar en números. En caso de ser \"Responsable de IVA\" registre el valor con IVA incluido ya que la herramienta descontará automáticamente el 19% para cálculos de base de liquidación de aportes a seguridad social.",null,null,null,null,null,null,28,"Veintiocho","Veintiocho",null,null,null,null,null,null,null,null,28,"Veintiocho","Veintiocho"]
[null,"Valor en Letras",null,{"$f":"IF(D55>0,TRIM(AC43),\"\")","v":""},null,null,null,"Valor a cobrar en letras (se calcula automáticamente).",null,null,null,null,null,null,29,"Veintinueve","Veintinueve",null,null,null,null,null,null,null,null,29,"Veintinueve","Veintinueve"]
[null,"N° Planilla","IBC Sugerido",{"$f":"IF(D19=\"Responsable de IVA\",((D55-(D55*0.159663865546218))*40%),IF(D19=\"NO Responsable de IVA\",D55*40%,0))","v":0},null,null,null,"Valor del Ingreso Base de Cotización que se calcula automáticamente y que servirá de base de liquidación para el cálculo de los aportes, es decir, equivale al 40% del valor a cobrar.",null,null,null,null,null,null,30,"Treinta","Treinta",null,null,null,null,null,null,null,null,30,"Treinta","Treinta"]
[null,null,"IBC registrado en la Planilla",null,null,null,null,"Registre el valor del ingreso base de cotización que aparece en su planilla de aportes a seguridad social. El valor que aquí se incluya, será usado de manera informativa por el equipo de pagos, con el fin de verificar si difiere significativamente con el IBC sugerido y  calculado automáticamente en la casilla anterior."]
[null,null,"Radicación o N° de Planilla",null,null,null,null,"Registre el número de radicación de la planilla que soporta el pago por concepto de aportes a salud, pensión y ARL.",null,null,null,null,null,null,40,"Cuarenta","Cuarenta",null,null,null,null,null,null,null,null,40,"Cuarenta","Cuarenta"]
[null,null,"Periodo de Cotización",null,"Año:",null,null,"Seleccione de la lista desplegable el mes y año de cotización por concepto de aportes a salud, pensión y ARL.",null,null,null,null,null,null,50,"Cincuenta","Cincuenta",null,null,null,null,null,null,null,null,50,"Cincuenta","Cincuenta"]
[null,null,"Fecha de pago",null,null,null,null,"Seleccione de la lista desplegable el día, mes y año de pago de la planilla por concepto de aportes a salud, pensión y ARL.",null,null,null,null,null,null,60,"Sesenta","Sesenta",null,null,null,null,null,null,null,null,60,"Sesenta","Sesenta"]
[null,"Aporte Salud (Mínimo)",null,{"$f":"D57*12.5%","v":0},null,null,null,"Valor que aportó discriminado por concepto de salud, digitando el mismo monto que aparece en planilla de soporte de pago. Este valor debe incluir los intereses y sobrecostos a que haya lugar para cada concepto.",null,null,null,null,null,null,70,"Setenta","Setenta",null,null,null,null,null,null,null,null,70,"Setenta","Setenta"]
[null,"Aporte Pensión (Mínimo)",null,{"$f":"IF(D45=\"Si\",IF(D57>(D46*4),D57*17%,D57*16%),0)","v":0},null,null,null,"Valor que aportó discriminado por concepto de pensión, digitando el mismo monto que aparece en planilla de soporte de pago. Este valor debe incluir los intereses y sobrecostos a que haya lugar para cada concepto.",null,null,null,null,null,null,80,"Ochenta","Ochenta",null,null,null,null,null,null,null,null,80,"Ochenta","Ochenta"]
[null,"Aporte a ARL (Mínimo)",null,{"$f":"IF(OR(D44=\"\",D57=0),0,\nIF(D44=\"I\",C101*D57,\nIF(D44=\"II\",C102*D57,\nIF(D44=\"III\",C103*D57,\nIF(D44=\"IV\",0,\nIF(D44=\"V\",0,))))))","v":0},null,null,null,"Valor que aportó discriminado por concepto de ARL, digitando el mismo monto que aparece en planilla de soporte de pago. Este valor debe incluir los intereses y sobrecostos a que haya lugar para cada concepto.",null,null,null,null,null,null,90,"Noventa","Noventa",null,null,null,null,null,null,null,null,90,"Noventa","Noventa"]
[null,"No. de Factura (Aplica solo para Régimen: Responsable de IVA) ",null,null,null,null,null,"Registre el prefijo y número de la factura"]
[null,"Fecha de Factura (Aplica solo para Régimen: Responsable de IVA) ",null,null,null,null,null,"Registre la fecha de expedición de la factura"]
[null,"No. del Cobro a Presentar",null,null,null,null,null,"Registre el consecutivo de la cuenta de cobro, por ejemplo, si es la tercera cuenta de un contrato pactado en 6 pagos el número de pago a registrar será \"3\" de 6.",null,null,null,null,null,null,100,"Cien","Ciento",null,null,null,null,null,null,null,null,100,"Cien","Ciento"]
[null,"No. de Pagos Pactados",null,null,null,null,null,"Registre el número de cuentas de cobro pactas en el contrato. por ejemplo, si el contrato se pactó a 6 pagos el número de pagos a registrar será \"6\".",null,null,null,null,null,null,200,"Doscientos","Doscientos",null,null,null,null,null,null,null,null,200,"Doscientos","Doscientos"]
[null,"Observaciones / Aclaraciones del Contratista",null,null,null,null,null,"Registre en esta casilla las observaciones o aclaraciones que considere necesarias para que sean conocidas por el equipo de pagos.",null,null,null,null,null,null,300,"Trescientos","Trescientos",null,null,null,null,null,null,null,null,300,"Trescientos","Trescientos"]
[null,null,null,null,null,null,null,null,null,null,null,null,null,null,400,"Cuatrocientos","Cuatrocientos",null,null,null,null,null,null,null,null,400,"Cuatrocientos","Cuatrocientos"]
[null,null,null,null,null,null,null,null,null,null,null,null,null,null,500,"Quinientos","Quinientos",null,null,null,null,null,null,null,null,500,"Quinientos","Quinientos"]
[null,null,null,{"$f":"CONCATENATE(\"Yo, \",D6,\" identificado con la cédula de ciudadanía No. \",D7,\" expedida en \",D8,\" en mi condición de contratista del\",\" INSTITUTO DISTRITAL DE GESTION DE RIESGOS Y CAMBIO CLIMÁTICO NIT. 800.154.275-1, según contrato de prestación de servicios No. \",D21,\" con fecha de inicio del \",D89)","v":"Yo,  identificado con la cédula de ciudadanía No.  expedida en  en mi condición de contratista del INSTITUTO DISTRITAL DE GESTION DE RIESGOS Y CAMBIO CLIMÁTICO NIT. 800.154.275-1, según contrato de prestación de servicios No.  con fecha de inicio del  de  "},null,null,null,null,null,null,null,null,null,null,600,"Seiscientos","Seiscientos",null,null,null,null,null,null,null,null,600,"Seiscientos","Seiscientos"]
[null,null,null,", declaro bajo la gravedad del juramento, en los términos establecidos en el parágrafo 1º del artículo 4º del Decreto 2271 de 2009 y el artículo 126-1 del Estatuto Tributario, que los documentos soportes del pago de aporte obligatorio a los sistemas de salud y pensión, cuya fotocopia acompaño junto con la presente cuenta de cobro, corresponden a los ingresos provenientes exclusivamente del contrato materia del pago sujeto a retención, que mi base de cotización al sistema de seguridad social no excede de 25 salarios mínimos legales mensuales, de que trata el artículo 3 del Decreto 510 de 2003.",null,null,null,null,null,null,null,null,null,null,700,"Setecientos","Setecientos",null,null,null,null,null,null,null,null,700,"Setecientos","Setecientos"]
[null,null,null,{"$f":"CONCATENATE(\"Anexo. Soporte de pago de aporte obligatorio al sistema de salud del mes de  \",D60,\" de \",F60,\", soportado en la planilla de aportes \",D59 )","v":"Anexo. Soporte de pago de aporte obligatorio al sistema de salud del mes de   de , soportado en la planilla de aportes "},null,null,null,null,null,null,null,null,null,null,800,"Ochocientos","Ochocientos",null,null,null,null,null,null,null,null,800,"Ochocientos","Ochocientos"]
[null,null,null,{"$f":"CONCATENATE(\"Periodo de cobro del \",D92,\" al \",D93)","v":"Periodo de cobro del  de   al  de  "},null,null,null,null,null,null,null,null,null,null,900,"Novecientos","Novecientos",null,null,null,null,null,null,null,null,900,"Novecientos","Novecientos"]
[null,null,null,{"$f":"CONCATENATE(\"Por concepto de \",D20,\" al Instituto Distrital de Gestión de Riesgos y Cambio Climático, según contrato de Prestación de Servicios No. PS - \",D21,\"/\",MID(F21,3,2),\", \",D80,\", la suma de \", LOWER(D56),\" . ($\",D55,\")\")","v":"Por concepto de  al Instituto Distrital de Gestión de Riesgos y Cambio Climático, según contrato de Prestación de Servicios No. PS - /, durante el periodo comprendido entre el  al  de  , la suma de  . ($)"}]
[null,null,null,{"$f":"IF(OR(LEN(D37)=0,LEN(#REF!)=0,LEN(D38)=0,LEN(D39)=0),\"\",CONCATENATE(\"Favor consignar \",D39,\" ($\",D38,\")  a la Cta. \",D36,\" del banco \",#REF!,\" No. \",D37))","v":{"$error":"#REF!"}}]
[null,null,null,{"$f":"IF(AND(LEN(D37)=0,LEN(#REF!)=0,LEN(D38)=0,LEN(D39)=0),CONCATENATE(\"Favor consignar a la Cta. de Ahorros del banco \",D34,\" No. \",D33),CONCATENATE(\"Favor consignar el saldo a la Cta. de Ahorros del banco \",D34,\" No. \",D33))","v":{"$error":"#REF!"}}]
[null,null,null,{"$f":"IF(OR(LEN(D37)=0,LEN(#REF!)=0,LEN(D38)=0,LEN(D39)=0),\"\",CONCATENATE(\"Favor consignar \",D39,\". ($\",D38,\")  a la Cta.\",D36,\" del banco \",#REF!,\" No. \",D37,\" y el saldo restante a la Cta. de Ahorros del banco \",D34,\" No. \",D33))","v":{"$error":"#REF!"}}]
[null,null,null,{"$f":"IF(OR(Ingreso!D53=0,Ingreso!D53=\"\"),CONCATENATE(\"durante el periodo comprendido entre el \",Ingreso!E92,\" al \",Ingreso!E93,),\nCONCATENATE(\"durante el periodo comprendido entre el \",Ingreso!E92,\" al \",Ingreso!E93,\" y el \",Ingreso!D96,\" al \",Ingreso!D97,))","v":"durante el periodo comprendido entre el  al  de  "}]
[]
[null,null,null,{"$f":"CONCATENATE(D21,\"/\",MID(F21,1,4))","v":"/"}]
[null,null,null,{"$f":"CONCATENATE(\"Yo \",D6,\", identificado con cedula de ciudadanía Nº:  \",D7,\" de \",D8,\" , a través del presente documento manifiesto mi interés de acogerme al articulo 173 de la Ley 1450 de 2011, reglamentado mediante el Decreto Nº. 3590 del 28 de septiembre de 2011\",\", para lo cual me permito relacionar la totalidad de los contratos vigentes suscritos a la fecha, su valor mensual discriminando\",\" el impuesto a las ventas IVA si aplica, que originan pagos en el respectivo mes.\")","v":"Yo , identificado con cedula de ciudadanía Nº:   de  , a través del presente documento manifiesto mi interés de acogerme al articulo 173 de la Ley 1450 de 2011, reglamentado mediante el Decreto Nº. 3590 del 28 de septiembre de 2011, para lo cual me permito relacionar la totalidad de los contratos vigentes suscritos a la fecha, su valor mensual discriminando el impuesto a las ventas IVA si aplica, que originan pagos en el respectivo mes."}]
[null,null,null,null,null,null,null,{"$f":"IF(LEN(D50)>0,VLOOKUP(D50,numeros,2,0),\"    \")","v":"    "},null,{"$f":"MID(D91,LEN(D91)-3,4)","v":"de  "},{"$f":"VLOOKUP(MID(J84,3,2),numeros,2,0)","v":{"$error":"#N/A"}}]
[null,null,null,{"$f":"D64","v":0}]
[null,null,null,{"$f":"CONCATENATE(\"Se expide en Bogotá D.C., a los \",#REF!,\" (\",H83,\") días del mes de \",#REF!,\" de dos mil \",K83,\" (\",J83,\")\")","v":{"$error":"#REF!"}}]
[null,null,null,{"$f":"CONCATENATE(\"Se expide en Bogotá D.C., a los \",D50,\" (\",H84,\") días del mes de \",E50,\" de dos mil \",K84,\" (\",J84,\")\")","v":{"$error":"#N/A"}}]
[null,null,null,{"$f":"CONCATENATE(\"Bogotá D.C., \",D50,\" de \",E50,\" de \",J84,\"\")","v":"Bogotá D.C.,  de  de de  "}]
[null,null,"D13",{"$f":"D23&\" de \"&E23&\" \"&F23","v":" de  "},null,null,"01","uno",null,"Enero"]
[null,null,"D14",{"$f":"D24&\" de \"&E24&\" \"&F24","v":" de  "},null,null,"02","dos",null,"Febrero"]
[null,null,"D32",{"$f":"D50&\" de \"&E50&\" \"&F50","v":" de  "},null,null,"03","tres",null,"Marzo"]
[null,null,"D33",{"$f":"D51&\" de \"&E51&\" \"&F51","v":" de  "},{"$f":"D51&\"\"","v":""},null,"04","cuatro",null,"Abril"]
[null,null,"D34",{"$f":"D52&\" de \"&E52&\" \"&F52","v":" de  "},{"$f":"D52&\" de \"&E52&\" \"&F52","v":" de  "},null,"05","cinco",null,"Mayo"]
[null,null,"D41",{"$f":"D61&\" de \"&E61&\" \"&F61","v":" de  "},null,null,"06","seis",null,"Junio"]
[null,null,null,null,null,null,"07","siete",null,"Julio"]
[null,null,null,{"$f":"D53&\"\"","v":""},null,null,"08","ocho",null,"Agosto"]
[null,null,null,{"$f":"D54&\" de \"&E54&\" \"&F54","v":" de  "},null,null,"09","nueve",null,"Septiembre",null,null,"MES"]
[null,null,null,{"$f":"D66&\" de \"&E66&\" \"&F66","v":" de  "},null,null,"10","diez",null,"Octubre",null,null,"Enero"]
[null,null,null,{"$f":"DAY(F31)","v":0},{"$f":"MONTH(F31)","v":1},{"$f":"YEAR(F31)","v":1900},"11","once",null,"Noviembre",null,null,"Febrero"]
[null,null,null,{"$f":"D99&\" de \"&E100&\" \"&F99","v":"0 de Ene 1900"},{"$f":"IF(E99=1,\"Ene\",\nIF(E99=2,\"Feb\",\nIF(E99=3,\"Mar\",\nIF(E99=4,\"Abr\",\nIF(E99=5,\"May\",\nIF(E99=6,\"Jun\",\nIF(E99=7,\"Jul\",\nIF(E99=8,\"Ago\",\nIF(E99=9,\"Sep\",\nIF(E99=10,\"Oct\",\nIF(E99=1,\"Nov\",\nIF(E99=12,\"Dic\",\"\"))))))))))))","v":"Ene"},null,"12","doce",null,"Diciembre",null,null,"Marzo"]
[null,"I",5.2199999999999998E-3,null,null,null,"13","trece",null,null,null,null,"Abril"]
[null,"II",1.044E-2,null,null,null,"14","catorce",null,null,null,null,"Mayo"]
[null,"III",2.436E-2,null,null,null,"15","quince",null,null,null,null,"Junio"]
[null,"IV",4.3499999999999997E-2,null,null,null,"16","dieciséis",null,null,null,null,"Julio"]
[null,"V",6.9599999999999995E-2,null,null,null,"17","diecisiete",null,null,null,null,"Agosto"]
[null,"Prestación de servicios profesionales",null,null,null,null,"18","dieciocho",null,null,null,null,"Septiembre"]
[null,"Prestación de servicios de apoyo",null,null,null,null,"19","diecinueve",null,null,null,null,"Octubre"]
[null,"Proveedor",null,null,null,null,"20","veinte",null,null,null,null,"Noviembre"]
[null,"SI",null,null,null,null,"21","veintiuno",null,null,null,null,"Diciembre"]
[null,"NO",null,null,null,null,"22","veintidós"]
[null,"Responsable de IVA",null,null,null,null,"23","veintitrés"]
[null,"NO Responsable de IVA",null,null,null,null,"24","veinticuatro"]
[null,null,null,null,null,null,"25","veinticinco",null,null,null,null,"YEAR"]
[null,null,null,null,null,null,"26","veintiséis",null,null,null,null,2020]
[null,null,null,null,null,null,"27","veintisiete",null,null,null,null,2021]
[null,null,null,null,null,null,"28","veintiocho",null,null,null,null,2022]
[null,null,null,null,null,null,"29","veintinueve",null,null,null,null,2023]
[null,null,null,null,null,null,"30","treinta",null,null,null,null,2024]
[null,null,null,null,null,null,"31","treinta y un",null,null,null,null,2025]
[null,null,null,null,null,null,null,null,null,null,null,null,2026]
[null,null,null,null,null,null,null,null,null,null,null,null,2027]
[null,"LINEAS DE INVERSION FONDIGER",null,null,"PROYECTO IDIGER",null,null,null,null,null,null,null,2028]
[null,"3-1-100-101","Elaboración y actualización de estudios de riesgo y cambio climático. ",{"$f":"CONCATENATE(B123,\": \",C123)","v":"3-1-100-101: Elaboración y actualización de estudios de riesgo y cambio climático. "},7566,"Fortalecimiento del Conocimiento del Riesgo de Desastres y Efectos del Cambio Climático en Bogotá",null,{"$f":"CONCATENATE(E123,\": \",F123)","v":"7566: Fortalecimiento del Conocimiento del Riesgo de Desastres y Efectos del Cambio Climático en Bogotá"},null,null,null,null,2029]
[null,"3-1-100-102","Investigación sobre riesgo de desastres y efectos del cambio climático.",{"$f":"CONCATENATE(B124,\": \",C124)","v":"3-1-100-102: Investigación sobre riesgo de desastres y efectos del cambio climático."},7557,"Fortalecimiento de acciones para la reducción del riesgo y medidas de adaptación al cambio climático en Bogotá",null,{"$f":"CONCATENATE(E124,\": \",F124)","v":"7557: Fortalecimiento de acciones para la reducción del riesgo y medidas de adaptación al cambio climático en Bogotá"}]
[null,"3-1-100-103","Monitoreo del riesgo, de los fenómenos amenazantes y del cambio climático y sus efectos.","3-1-100-103: Monitoreo del riesgo, de los fenómenos amenazantes y del cambio climático y sus efectos.",7558,"Fortalecimiento y modernización de la gestión institucional del IDIGER en Bogotá",null,{"$f":"CONCATENATE(E125,\": \",F125)","v":"7558: Fortalecimiento y modernización de la gestión institucional del IDIGER en Bogotá"}]
[null,"3-1-100-104","Tecnologías de la Información y las Comunicaciones. ","3-1-100-104: Tecnologías de la Información y las Comunicaciones. ",7559,"Fortalecimiento al Manejo de Emergencias, Calamidades y/o Desastres para Bogotá",null,{"$f":"CONCATENATE(E126,\": \",F126)","v":"7559: Fortalecimiento al Manejo de Emergencias, Calamidades y/o Desastres para Bogotá"}]
[null,"3-1-200-202","Estructura Ecológica Principal de Bogotá","3-1-200-202: Estructura Ecológica Principal de Bogotá",null,null,null,"8049 - Incremento de las acciones de reducción del riesgo y adaptación al cambio climático en las unidades de Planeamiento Local UPL, que cuenten con análisis de riesgo en Bogotá D.C."]
[null,"3-1-200-204","Programa de transformación de las zonas de riesgos en suelos de protección","3-1-200-204: Programa de transformación de las zonas de riesgos en suelos de protección",null,null,null,"8056 - Generación de acciones para la reducción de la condición de vulnerabilidad de las familias ubicadas en zona de alto riesgo no mitigable en la ciudad de Bogotá D.C"]
[null,"3-1-200-205","Reasentamiento de Familias en Riesgo","3-1-200-205: Reasentamiento de Familias en Riesgo",null,null,null,"8062 - Optimización del proceso de manejo de emergencias y desastres en Bogotá D.C."]
[null,"3-2-100-101","Preparación interinstitucional para la respuesta a emergencias","3-2-100-101: Preparación interinstitucional para la respuesta a emergencias",null,null,null,"8065 - Fortalecimiento de la gobernanza del Riesgo y Adaptación al Cambio Climático en la Ciudad de Bogotá D.C."]
[null,"3-2-100-102","Preparación comunitaria y del sector privado para la respuesta a emergencias.","3-2-100-102: Preparación comunitaria y del sector privado para la respuesta a emergencias.",null,null,null,"8076 - Generación de Conocimiento del Riesgo de Desastres y los Efectos del Cambio Climático en Bogotá D.C."]
[null,"3-2-200-000","Atención integral, oportuna, eficiente y eficaz de las situaciones de emergencia","3-2-200-000: Atención integral, oportuna, eficiente y eficaz de las situaciones de emergencia",null,null,null,"8079 - Implementación de acciones de fortalecimiento Institucional para mejorar el desempeño institucional del IDIGER en el Distrito Capital Bogotá D.C"]
[null,"3-2-200-201","Atención integral, oportuna, eficiente y eficaz de las situaciones de emergencia","3-2-200-201: Atención integral, oportuna, eficiente y eficaz de las situaciones de emergencia",null,null,null,"8235 - Fortalecimiento de la capacidad institucional de la entidad coordinadora del Sistema Distrital de Gestión de Riesgos y Cambio Climático en las instancias locales de Bogotá D.C."]
[null,"3-3-100-101","Gestión de ecosistemas estratégicos y áreas de interés ambiental para Bogotá y la Región ","3-3-100-101: Gestión de ecosistemas estratégicos y áreas de interés ambiental para Bogotá y la Región "]
[null,"3-3-100-102","Seguridad y resiliencia alimentaria","3-3-100-102: Seguridad y resiliencia alimentaria"]
[null,"3-3-100-103","Ordenamiento territorial y Ecourbanismo para la adaptación.","3-3-100-103: Ordenamiento territorial y Ecourbanismo para la adaptación."]
[null,"3-3-100-104","Protección del acuífero de la Sabana de Bogotá","3-3-100-104: Protección del acuífero de la Sabana de Bogotá"]
[null,"3-3-100-105","Recuperación de la cuenca del río Bogotá","3-3-100-105: Recuperación de la cuenca del río Bogotá"]
[null,"3-3-100-106","Gestión integral del agua para la adaptación.","3-3-100-106: Gestión integral del agua para la adaptación."]
[null,"3-3-100-107","Resiliencia en salud por cambio climático","3-3-100-107: Resiliencia en salud por cambio climático"]
[null,"3-3-200-201","Participación social y comunitaria para la gestión de riesgos y cambio climático","3-3-200-201: Participación social y comunitaria para la gestión de riesgos y cambio climático"]
[null,"3-3-300-301","Apropiación social y cultural para la reducción del riesgo y la adaptación al cambio climático.","3-3-300-301: Apropiación social y cultural para la reducción del riesgo y la adaptación al cambio climático."]
[null,"3-3-400- 401","Movilidad sostenible ","3-3-400- 401: Movilidad sostenible "]
[null,"3-3-400- 402","Gestión Integral de Residuos.","3-3-400- 402: Gestión Integral de Residuos."]
[null,"3-3-400- 403","Eficiencia energética","3-3-400- 403: Eficiencia energética"]
[null,"3-3-400- 404","Construcción sostenible","3-3-400- 404: Construcción sostenible"]
[null,"3-4-100-101","Reglamentación del uso del suelo por amenaza y riesgo.","3-4-100-101: Reglamentación del uso del suelo por amenaza y riesgo."]
[null,"3-4-100-102","Reducción del riesgo por incendios forestales","3-4-100-102: Reducción del riesgo por incendios forestales"]
[null,"3-4-100-103","Sector productivo resiliente","3-4-100-103: Sector productivo resiliente"]
[null,"3-4-100-104","Obras de mitigación del riesgo.","3-4-100-104: Obras de mitigación del riesgo."]
[null,"3-4-100-105","Reasentamiento de familias en riesgo y gestión predial.","3-4-100-105: Reasentamiento de familias en riesgo y gestión predial."]
[null,"3-4-100-106","Reducción del riesgo tecnológico","3-4-100-106: Reducción del riesgo tecnológico"]
[null,"3-4-100-107","Reducción del riesgo por aglomeraciones de público.","3-4-100-107: Reducción del riesgo por aglomeraciones de público."]
[null,"3-4-200-201","Reducción del riesgo sísmico en vivienda, edificaciones indispensables y de atención a la comunidad.","3-4-200-201: Reducción del riesgo sísmico en vivienda, edificaciones indispensables y de atención a la comunidad."]
[null,"3-4-200-202","Reducción de la vulnerabilidad funcional de los servicios públicos y de movilidad.","3-4-200-202: Reducción de la vulnerabilidad funcional de los servicios públicos y de movilidad."]
[null,"3-4-300-301","Participación y apropiación social, comunitaria y cultural para la gestión del riesgo y cambio climático","3-4-300-301: Participación y apropiación social, comunitaria y cultural para la gestión del riesgo y cambio climático"]
[null,"3-4-300-302","Educación para la gestión del riesgo y cambio climático","3-4-300-302: Educación para la gestión del riesgo y cambio climático"]
[null,"3-4-300-303","Comunicación para la gestión del riesgo y cambio climático","3-4-300-303: Comunicación para la gestión del riesgo y cambio climático"]
[null,"3-4-400-401","Fortalecimiento del Sistema Distrital de Gestión de Riesgos y Cambio Climático.","3-4-400-401: Fortalecimiento del Sistema Distrital de Gestión de Riesgos y Cambio Climático."]
[null,"3-4-400-402","Gestión y promoción de alianzas y cooperación","3-4-400-402: Gestión y promoción de alianzas y cooperación"]
[null,"3-5-100-101","Preparación para facilitar la recuperación","3-5-100-101: Preparación para facilitar la recuperación"]
[null,"3-6-100-101","Estrategia de Protección Financiera.","3-6-100-101: Estrategia de Protección Financiera."]

{"sheet":"GF-FT-42","index":1,"n_rows":43,"n_cols":30,"rows_kept":43,"cut":false,"hidden":false,"merged":[[13,13,13,24],[38,20,38,29],[39,2,39,6],[39,20,39,29],[39,7,39,18],[38,2,38,6],[38,7,38,18],[31,12,31,16],[31,20,31,21],[35,1,35,11],[35,21,35,30],[31,22,31,30],[33,1,33,30],[34,1,34,11],[34,12,34,20],[34,21,34,29],[31,2,31,3],[31,17,31,19],[35,12,35,20],[31,4,31,11],[42,0,42,31],[40,2,40,6],[40,19,41,19],[40,20,41,29],[41,2,41,6],[40,7,40,18],[41,7,41,18],[32,1,32,30],[22,42,23,46],[23,26,23,29],[23,1,23,16],[23,19,23,25],[25,11,25,18],[26,19,26,24],[24,2,24,10],[24,14,24,17],[29,21,29,23],[29,26,29,28],[27,2,27,12],[27,15,27,17],[28,15,28,17],[28,2,28,13],[0,0,0,31],[1,1,4,7],[1,25,1,30],[2,25,2,30],[3,25,3,30],[4,25,4,30],[1,8,4,24],[5,1,5,30],[7,1,7,24],[6,1,6,24],[6,25,7,26],[6,27,7,27],[6,28,7,28],[6,29,7,30],[9,1,9,24],[8,1,8,24],[8,25,8,26],[8,27,8,30],[9,25,9,26],[9,27,9,30],[15,1,15,30],[17,21,17,23],[11,1,11,12],[11,13,11,24],[10,25,10,30],[11,25,11,30],[12,1,12,12],[17,27,17,30],[17,11,17,19],[17,24,17,26],[12,25,12,30],[13,25,13,30],[10,1,10,12],[10,13,10,24],[13,1,13,12],[12,13,12,24],[18,5,18,12],[20,5,20,8],[20,11,20,29],[30,1,30,7],[24,19,24,24],[27,19,27,24],[24,25,24,29],[27,25,27,29],[28,25,28,29],[28,19,28,24],[26,25,26,29],[26,2,26,12],[26,15,26,17],[21,1,21,29],[29,6,29,12],[29,15,29,17]]}
[]
[null,null,null,null,null,null,null,null,"AUTORIZACIÓN DE PAGOS PARA PRESTACIÓN DE SERVICIOS PERSONALES",null,null,null,null,null,null,null,null,null,null,null,null,null,null,null,null,"Código: GF-FT-42"]
[null,null,null,null,null,null,null,null,null,null,null,null,null,null,null,null,null,null,null,null,null,null,null,null,null,"Versión: 3"]
[null,null,null,null,null,null,null,null,null,null,null,null,null,null,null,null,null,null,null,null,null,null,null,null,null,"Página: 1 de 1"]
[null,null,null,null,null,null,null,null,null,null,null,null,null,null,null,null,null,null,null,null,null,null,null,null,null,"Vigente desde: 03/01/2023"]
[]
[null,{"$f":"IF(Ingreso!D16=\"IDIGER\",\"1. PROYECTO:\",IF(Ingreso!D16=\"FONDIGER\",\"1. PROGRAMA:\",\"\"))","v":""},null,null,null,null,null,null,null,null,null,null,null,null,null,null,null,null,null,null,null,null,null,null,null,"Pago No. ",null,{"$f":"Ingreso!D67","v":0},"de",{"$f":"Ingreso!D68","v":0}]
[null,{"$f":"Ingreso!D29","v":0}]
[null,"2. OBJETO:",null,null,null,null,null,null,null,null,null,null,null,null,null,null,null,null,null,null,null,null,null,null,null,"R.P.",null,"R.P. Adición"]
[null,{"$f":"Ingreso!D30","v":0},null,null,null,null,null,null,null,null,null,null,null,null,null,null,null,null,null,null,null,null,null,null,null,{"$f":"CONCATENATE(Ingreso!D31,\" del \",Ingreso!F31)","v":" del "},null,{"$f":"Ingreso!D32","v":0}]
[null,"3. NOMBRE SUPERVISOR:",null,null,null,null,null,null,null,null,null,null,null,"3.1 NOMBRE DEL APOYO DEL SUPERVISOR:",null,null,null,null,null,null,null,null,null,null,null,"Actividad Economica"]
[null,{"$f":"M35","v":0},null,null,null,null,null,null,null,null,null,null,null,{"$f":"Ingreso!D26","v":0},null,null,null,null,null,null,null,null,null,null,null,{"$f":"Ingreso!D17","v":0}]
[null,"4. FECHA DE INICIO DEL CONTRATO:",null,null,null,null,null,null,null,null,null,null,null,"5. FECHA DE TERMINACIÓN DEL CONTRATO:",null,null,null,null,null,null,null,null,null,null,null,"Tarifa de Retención ICA"]
[null,{"$f":"Ingreso!D89","v":" de  "},null,null,null,null,null,null,null,null,null,null,null,{"$f":"Ingreso!D90","v":" de  "},null,null,null,null,null,null,null,null,null,null,null,{"$f":"Ingreso!D18","v":0}]
[]
[null,"CERTIFICACIÓN"]
[]
[null,"Actuando en calidad de supervisor del contrato de ",null,null,null,null,null,null,null,null,null,{"$f":"Ingreso!D20","v":0},null,null,null,null,null,null,null,null,"N°",{"$f":"Ingreso!D21","v":0},null,null,"del año:",null,null,{"$f":"Ingreso!F21","v":0}]
[null,"certifico que,",null,null,null,{"$f":"Ingreso!D6","v":0},null,null,null,null,null,null,null,"con N° de identificación",null,null,null,null,null,{"$f":"Ingreso!D7","v":0},"cumplió a satisfacción con el objeto contractual descrito"]
[null,"anteriormente. Con base en lo anterior, autorizo efectuar el pago",null,null,null,null,null,null,null,null,null,null,null,{"$f":"IF(Ingreso!D19=\"Responsable de IVA\",CONCATENATE(\"de la factura No. \",Ingreso!D65,\" del \",Ingreso!D98),IF(Ingreso!D19=\"NO Responsable de IVA\",CONCATENATE(\"del documento equivalente No.   \",Ingreso!D67,\"   de   \",Ingreso!D68),\"\"))","v":""},null,null,null,null,null,null,{"$f":"IF(Ingreso!D19=\"Responsable de IVA\",CONCATENATE(\"presentada el \",Ingreso!D91),IF(Ingreso!D19=\"NO Responsable de IVA\",CONCATENATE(\"presentado el \",Ingreso!D91),\"\"))","v":""}]
[null,"por valor de",null,null,null,{"$f":"Ingreso!D55","v":0},null,null,null,"(en letras)",null,{"$f":"Ingreso!D56","v":""}]
[null,{"$f":"IF(OR(Ingreso!D53=0,Ingreso!D53=\"\"),CONCATENATE(\"perteneciente al periodo del \",Ingreso!E92,\" al \",Ingreso!E93,\".\"),\nCONCATENATE(\"perteneciente al periodo del \",Ingreso!E92,\" al \",Ingreso!E93,\" y del \",Ingreso!D96,\" al \",Ingreso!D97,))","v":"perteneciente al periodo del  al  de  ."}]
[]
[null,"6. LIQUIDACIÓN DE APORTES AL SISTEMA GENERAL DE SEGURIDAD SOCIAL:"]
[null,null,"Ingreso Base de Cotización (IBC) Sugerido",null,null,null,null,null,null,null,null,null,null,null,{"$f":"Ingreso!D57","v":0},null,null,null,null,"Ingreso Base de Cotización (IBC) Registrado en la Planilla",null,null,null,null,null,{"$f":"Ingreso!D58","v":0}]
[null,null,null,null,null,null,null,null,null,null,null,"           Valor mínimo a cotizar"]
[null,null,"Aporte a sistema de salud (12,5% del 40%) ",null,null,null,null,null,null,null,null,null,null,null,"$",{"$f":"Ingreso!D62","v":0},null,null,null,"Periodo de Pago",null,null,null,null,null,{"$f":"Ingreso!D60","v":0}]
[null,null,{"$f":"IF(Ingreso!D57>(Ingreso!D46*4),\"Aporte a sistema de pensión (17% del 40%)\",\"Aporte a sistema de pensión (16% del 40%)\")","v":"Aporte a sistema de pensión (16% del 40%)"},null,null,null,null,null,null,null,null,null,null,null,"$",{"$f":"Ingreso!D63","v":0},null,null,null,"Fecha de pago",null,null,null,null,null,{"$f":"Ingreso!D94","v":" de  "}]
[null,null,{"$f":"CONCATENATE(\"Aporte a ARL bajo nivel de riesgo \",Ingreso!D44,IF(OR(Ingreso!D44=\"IV\",Ingreso!D44=\"V\"),\" (Asumido por la Entidad)\",\"\"))","v":"Aporte a ARL bajo nivel de riesgo "},null,null,null,null,null,null,null,null,null,null,null,"$",{"$f":"Ingreso!D64","v":0},null,null,null,"Número de Planilla",null,null,null,null,null,{"$f":"Ingreso!D59","v":0}]
[null,null,null,null,null,null,"TOTAL",null,null,null,null,null,null,null,"$",{"$f":"SUM(P27:R29)","v":0}]
[null,"7. EFECTUAR PAGO EN:"]
[null,null,"Banco",null,{"$f":"Ingreso!D34","v":0},null,null,null,null,null,null,null,"Tipo de cuenta",null,null,null,null,{"$f":"Ingreso!D35","v":0},null,null,"No.",null,{"$f":"Ingreso!D33","v":0}]
[null,{"$f":"IF(Ingreso!D69=\"\",\"\",CONCATENATE(\"Observación del Contratista: \",Ingreso!D69))","v":""}]
[null,{"$f":"IFERROR(Ingreso!D87,\"\")","v":""}]
[null,{"$f":"Ingreso!D6","v":0},null,null,null,null,null,null,null,null,null,null,{"$f":"IF(OR(Ingreso!D27>0,Ingreso!D27<>\"\"),Ingreso!D27,Ingreso!D25)","v":0},null,null,null,null,null,null,null,null,{"$f":"Ingreso!D26","v":0}]
[null,"8. FIRMA DEL (DE LA) CONTRATISTA\nDe acuerdo con lo estipulado en la normatividad vigente, manifiesto, bajo la gravedad de juramento, que los documentos soportes del pago de aportes obligatorios al Sistema General de Seguridad Social, presentados a esta Entidad contratante, corresponden a los ingresos provenientes del contrato de prestación de servicios mencionados en el presente documento.",null,null,null,null,null,null,null,null,null,null,"9. FIRMA DEL SUPERVISOR\nEl (la) suscrito(a) supervisor(a) certifica que el (la) contratista presentó el (los) informe(s) de ejecución avalado(s) por el (los) supervisor(es) designado(s), los pagos al Sistema General de Seguridad Social conforme lo establecido en la normatividad vigente, y por lo anterior autoriza el presente pago.",null,null,null,null,null,null,null,null,"10. FIRMA DEL APOYO DEL SUPERVISOR\nEl (la) suscrito(a) apoyo del supervisor(a) certifica que el (la) contratista presentó el (los) informe(s) de ejecución avalado(s) por el (los) supervisor(es) designado(s), los pagos al Sistema General de Seguridad Social conforme lo establecido en la normatividad vigente, y por lo anterior autorizo el presente pago."]
[]
[null,"11. ANTE INCONSISTENCIAS, INFORMAR MEDIANTE LOS SIGUIENTES DATOS DE CONTACTO / LA SIGUIENTE INFORMACIÓN DEBE COINCIDIR CON EL RUT:"]
[null,null,"Dirección:",null,null,null,null,{"$f":"Ingreso!D9","v":0},null,null,null,null,null,null,null,null,null,null,null,"Ciudad de Residencia:",{"$f":"Ingreso!D10","v":0}]
[null,null,"Teléfono / extensión:",null,null,null,null,{"$f":"Ingreso!D12","v":0},null,null,null,null,null,null,null,null,null,null,null,"Correo Electrónico:",{"$f":"Ingreso!D13","v":0}]
[null,null,"Código Postal:",null,null,null,null,{"$f":"Ingreso!D11","v":0},null,null,null,null,null,null,null,null,null,null,null,"Ciudad en que se prestó el servicio o se adquirió el bien:",{"$f":"Ingreso!D14","v":0}]
[null,null,"NIT con Digito de Verificación:",null,null,null,null,{"$f":"CONCATENATE(Ingreso!D15,\" - \",Ingreso!F15)","v":" - "}]
["Nota: Si este documento se encuentra impreso se considera Copia no Controlada. La versión vigente está publicada en el sitio web del Instituto Distrital de Gestión de Riesgos y Cambio Climático – IDIGER."]

{"sheet":"GFI-FT-25","index":2,"n_rows":40,"n_cols":39,"rows_kept":40,"cut":false,"hidden":true,"merged":[[38,0,38,11],[38,12,38,23],[38,24,38,30],[39,0,39,11],[39,12,39,23],[39,24,39,30],[35,1,35,21],[24,2,24,31],[24,32,24,33],[24,34,24,35],[27,1,27,9],[27,10,27,15],[27,16,27,20],[27,21,27,24],[27,25,27,35],[26,1,26,35],[32,1,32,20],[33,1,33,3],[33,4,33,20],[34,1,34,2],[34,3,34,21],[22,2,22,31],[22,32,22,33],[22,34,22,35],[23,2,23,31],[23,32,23,33],[23,34,23,35],[20,2,20,31],[20,32,20,33],[20,34,20,35],[21,2,21,31],[21,32,21,33],[21,34,21,35],[18,2,18,31],[18,32,18,33],[18,34,18,35],[19,2,19,31],[19,32,19,33],[19,34,19,35],[16,2,16,31],[16,32,16,33],[16,34,16,35],[17,2,17,31],[17,32,17,33],[17,34,17,35],[15,32,15,33],[15,34,15,35],[5,5,5,9],[5,11,5,12],[6,1,6,17],[3,25,3,30],[3,31,3,35],[3,38,3,42],[5,1,5,2],[14,1,14,35],[1,1,3,4],[1,5,3,24],[1,25,1,30],[1,31,1,35],[1,38,1,42],[2,25,2,30],[2,31,2,35],[2,38,2,42]]}
[]
[null,null,null,null,null,"CERTIFICADO PARA LA RETENCIÓN EN LA FUENTE",null,null,null,null,null,null,null,null,null,null,null,null,null,null,null,null,null,null,null,"CÓDIGO",null,null,null,null,null,"GFI-FT-25",null,null,null,null,null,null,"GFI-FT-01"]
[null,null,null,null,null,null,null,null,null,null,null,null,null,null,null,null,null,null,null,null,null,null,null,null,null,"VERSIÓN",null,null,null,null,null,1,null,null,null,null,null,null,6]
[null,null,null,null,null,null,null,null,null,null,null,null,null,null,null,null,null,null,null,null,null,null,null,null,null,"FECHA DE REVISIÓN",null,null,null,null,null,"2014-10-10",null,null,null,null,null,null,"2014-10-06"]
[]
[null,"Bogotá,",null,{"$f":"Ingreso!G84","v":0},"de",{"$f":"Ingreso!I84","v":0},null,null,null,null,"de ",{"$f":"Ingreso!J84","v":"de  "}]
[null,"Bogotá, 06 de Octubre de  2016"]
[]
[null,"Señores"]
[null,"Instituto Distrital de Gestión de Riesgos y Cambio Climático- IDIGER"]
[null,"Ciudad. "]
[]
[null,"Apreciados señores:"]
[]
[null,"Para efectos de determinar la categoría tributaria a que pertenezco de acuerdo con lo previsto en el artículo 329 del Estatuto Tributario, artículo 1º del Decreto 1070 de 2013 y artículo 6º del Decreto 3032 de 2013, me permito certificar bajo la gravedad de juramento, lo siguiente:"]
[null,null,null,null,null,null,null,null,null,null,null,null,null,null,null,null,null,null,null,null,null,null,null,null,null,null,null,null,null,null,null,null,"Si",null,"No "]
[null,1,"Soy persona natural residente en Colombia. ",null,null,null,null,null,null,null,null,null,null,null,null,null,null,null,null,null,null,null,null,null,null,null,null,null,null,null,null,null,"x"]
[null,2,"Mis ingresos en el año gravable 2015 provienen de la prestación de servicios de manera personal o del desarrollo de una actividad económica por cuenta y riesgo del empleador o contratante, en una proporción igual o superior a un 80% del total de mis ingresos percibidos en dicho período fiscal.",null,null,null,null,null,null,null,null,null,null,null,null,null,null,null,null,null,null,null,null,null,null,null,null,null,null,null,null,null,"x"]
[null,3,"Mis ingresos en el año gravable 2015 provienen de la prestación de servicios personales mediante el ejercicio de profesiones liberales o de la prestación de servicios técnicos que no requieran la utilización de materiales o insumos especializados, o de maquinaria o equipo especializado, en una proporción igual o superior a un 80% del total de mis ingresos percibidos en dicho período fiscal.",null,null,null,null,null,null,null,null,null,null,null,null,null,null,null,null,null,null,null,null,null,null,null,null,null,null,null,null,null,"x"]
[null,4,"Mis ingresos en el año gravable 2015 provienen de las actividades desarrolladas en los dos ítem anteriores (2 y 3) , en una proporción igual o superior a un 80% del total de mis ingresos percibidos en dicho periodo fiscal.",null,null,null,null,null,null,null,null,null,null,null,null,null,null,null,null,null,null,null,null,null,null,null,null,null,null,null,null,null,"x"]
[null,5,"Durante el año gravable inmediatamente anterior presté servicios técnicos que requirieron de materiales o insumos especializados, o maquinaria y equipo especializada, cuyo costo representa menos del 25% del total de los ingresos percibidos por concepto de servicios técnicos o no generó costos.",null,null,null,null,null,null,null,null,null,null,null,null,null,null,null,null,null,null,null,null,null,null,null,null,null,null,null,null,null,null,null,"x"]
[null,6,"En el año inmediatamente anterior desarrollé alguna de las actividades señaladas en el artículo 340 del Estatuto Tributario (Actividades deportivas y otras actividades de esparcimiento, Agropecuario, silvicultura y pesca, Comercio al por mayor, Comercio al por menor, Comercio de vehículos automotores, accesorios y productos conexos, Construcción, Electricidad, gas y vapor, Fabricación de productos minerales y otros , Fabricación de sustancias químicas, Industria de la madera, corcho y papel, Manufactura alimentos, Manufactura textiles, prendas de vestir y cuero, Minería, Servicio de transporte, almacenamiento y comunicaciones, Servicios de hoteles, restaurantes y similares, Servicios financieros).",null,null,null,null,null,null,null,null,null,null,null,null,null,null,null,null,null,null,null,null,null,null,null,null,null,null,null,null,null,null,null,"x"]
[null,7,"En caso que la respuesta del numeral anterior sea afirmativa, el desarrollo de una de las actividades me generó más del 80% de mis ingresos.",null,null,null,null,null,null,null,null,null,null,null,null,null,null,null,null,null,null,null,null,null,null,null,null,null,null,null,null,null,null,null,"x"]
[null,8,"Mis ingresos totales en el año gravable 2015 superaron los 1,400 UVT",null,null,null,null,null,null,null,null,null,null,null,null,null,null,null,null,null,null,null,null,null,null,null,null,null,null,null,null,null,"x"]
[null,9,"Estoy obligado a presentar declaración de renta por el año gravable inmediatamente anterior.",null,null,null,null,null,null,null,null,null,null,null,null,null,null,null,null,null,null,null,null,null,null,null,null,null,null,null,null,null,"x"]
[]
[null,"Esta certificación se expide a los cinco (06) días del mes de Octubre del año dos mil diecises (2016)"]
[null,"Esta certificación se expide a los ",null,null,null,null,null,null,null,null,{"$f":"CONCATENATE(D6,\" (\",Ingreso!H84,\")\")","v":"0 (    )"},null,null,null,null,null,"días del mes de  ",null,null,null,null,{"$f":"F6","v":0},null,null,null,{"$f":"CONCATENATE(\"del año dos mil \",Ingreso!K84,\" \",Ingreso!J84)","v":{"$error":"#N/A"}}]
[]
[null,"Cordialmente, "]
[]
[]
[]
[null,"Nombre:",null,null,{"$f":"Ingreso!D6","v":0}]
[null,"Cédula:",null,{"$f":"RETENCIÓN!A32","v":"CC. No.   de "}]
[]
[]
[]
["ELABORADO POR",null,null,null,null,null,null,null,null,null,null,null,"REVISADO POR",null,null,null,null,null,null,null,null,null,null,null,"APROBADO POR"]
["SANDRA CAYCEDO MOYANO\nProfesional Planeación Estratégica - DG (Pl)",null,null,null,null,null,null,null,null,null,null,null,"JOSE LEONARDO MILLAN \nProfesional Planeación Estratégica - DG (Pl)\n\nCLAUDIA CECILIA SUNA LADINO \nCoordinación de Gestión de Pagos",null,null,null,null,null,null,null,null,null,null,null,"CAROLINA ABUSAID GRAÑA\nSubdirector Corporativo y Asuntos Disciplinarios \n\nDAVID VALDÉS CRUZ  \nAsesor de Planeación Estratégica"]

{"sheet":"RETENCIÓN","index":3,"n_rows":103,"n_cols":5,"rows_kept":103,"cut":false,"hidden":true,"merged":[[102,0,104,22],[36,0,36,22],[31,0,31,22],[33,0,35,22],[1,4,1,12],[4,0,4,22],[5,0,5,22],[7,0,22,22],[24,0,26,22],[30,0,30,22],[28,7,29,15]]}
[]
["Bogotá D.C., ",null,null,null,{"$f":"Ingreso!D91","v":" de  "}]
[]
["Señores"]
["INSTITUTO DISTRITAL DE GESTION DE RIESGOS Y CAMBIO CLIMÁTICO"]
["NIT. 800.154.275-1"]
[]
[{"$f":"CONCATENATE(Ingreso!D72,Ingreso!D73)","v":"Yo,  identificado con la cédula de ciudadanía No.  expedida en  en mi condición de contratista del INSTITUTO DISTRITAL DE GESTION DE RIESGOS Y CAMBIO CLIMÁTICO NIT. 800.154.275-1, según contrato de prestación de servicios No.  con fecha de inicio del  de  , declaro bajo la gravedad del juramento, en los términos establecidos en el parágrafo 1º del artículo 4º del Decreto 2271 de 2009 y el artículo 126-1 del Estatuto Tributario, que los documentos soportes del pago de aporte obligatorio a los sistemas de salud y pensión, cuya fotocopia acompaño junto con la presente cuenta de cobro, corresponden a los ingresos provenientes exclusivamente del contrato materia del pago sujeto a retención, que mi base de cotización al sistema de seguridad social no excede de 25 salarios mínimos legales mensuales, de que trata el artículo 3 del Decreto 510 de 2003."}]
[]
[]
[]
[]
[]
[]
[]
[]
[]
[]
[]
[]
[]
[]
[]
["Cordialmente"]
[]
[]
[]
[]
[]
[]
[{"$f":"#REF!","v":{"$error":"#REF!"}}]
[{"$f":"CONCATENATE(\"CC. No.  \",Ingreso!D7,\" de \",Ingreso!D8)","v":"CC. No.   de "}]
[]
[{"$f":"Ingreso!D74","v":"Anexo. Soporte de pago de aporte obligatorio al sistema de salud del mes de   de , soportado en la planilla de aportes "}]
[]
[]
[]
[]
[]
[]
[]
[]
[]
[]
[]
[]
[]
[]
[]
[]
[]
[]
[]
[]
[]
[]
[]
[]
[]
[]
[]
[]
[]
[]
[]
[]
[]
[]
[]
[]
[]
[]
[]
[]
[]
[]
[]
[]
[]
[]
[]
[]
[]
[]
[]
[]
[]
[]
[]
[]
[]
[]
[]
[]
[]
[]
[]
[]
[]
[]
[]
[]
["Anexo. Soporte de pago de aporte obligatorio al sistema de salud del mes de junio de 2021 según planillas 7790846876 - 7790846876."]

{"sheet":"GF-FT-02","index":4,"n_rows":32,"n_cols":21,"rows_kept":32,"cut":false,"hidden":false,"merged":[[23,1,23,8],[23,9,23,17],[23,18,23,20],[24,1,24,8],[24,9,24,17],[24,18,24,20],[26,1,26,8],[26,9,26,17],[26,18,26,20],[25,1,25,8],[25,9,25,17],[25,18,25,20],[21,1,21,8],[21,9,21,17],[21,18,21,20],[22,1,22,8],[22,9,22,17],[22,18,22,20],[14,1,14,8],[11,1,12,14],[11,15,11,16],[11,18,11,19],[12,15,12,16],[12,18,12,19],[14,9,14,17],[14,18,14,20],[13,1,13,20],[17,1,17,8],[17,9,17,17],[17,18,17,20],[18,1,18,8],[18,9,18,17],[18,18,18,20],[15,1,15,8],[16,1,16,8],[15,9,15,17],[15,18,15,20],[16,9,16,17],[16,18,16,20],[31,1,31,20],[28,1,28,8],[28,9,28,17],[29,9,30,17],[19,9,19,17],[19,18,19,20],[20,9,20,17],[20,18,20,20],[29,18,30,20],[28,18,28,20],[19,1,19,8],[27,1,27,8],[20,1,20,8],[27,9,27,17],[27,18,27,20],[29,1,30,8],[9,1,9,6],[9,7,9,9],[9,10,9,15],[10,1,10,6],[10,7,10,20],[0,1,3,7],[5,16,5,20],[7,1,7,6],[8,1,8,6],[7,7,7,9],[7,10,7,15],[8,7,8,20],[5,7,5,9],[5,10,5,15],[4,1,4,20],[0,8,3,18],[6,1,6,6],[6,7,6,20],[5,1,5,6],[1,19,1,20],[3,19,3,20]]}
[null,null,null,null,null,null,null,null,"INFORME DE EJECUCIÓN DE ACTIVIDADES DEL CONTRATO",null,null,null,null,null,null,null,null,null,null,"Código: GF-FT-02"]
[null,null,null,null,null,null,null,null,null,null,null,null,null,null,null,null,null,null,null,"Versión: 5"]
[null,null,null,null,null,null,null,null,null,null,null,null,null,null,null,null,null,null,null,"Página: 1 de 3"]
[null,null,null,null,null,null,null,null,null,null,null,null,null,null,null,null,null,null,null,"Vigente desde: 14/12/2024"]
[]
[null,"1. CONTRATO N°",null,null,null,null,null,{"$f":"Ingreso!D82","v":"/"},null,null,{"$f":"IF(H8=\"SI\",\"2. PERIODO DEL PRIMER INFORME\",\"2. PERIODO DEL INFORME\")","v":"2. PERIODO DEL PRIMER INFORME"},null,null,null,null,null,{"$f":"IF(OR(H8=\"\",H8=\"NO\"),CONCATENATE(\"del \",Ingreso!E92,\" al \",Ingreso!E93),\nCONCATENATE(\"del \",Ingreso!E92,\" al \",IF(Ingreso!D53>0,Ingreso!D52,(Q8-1)),\" de \",R8,\" de \",Ingreso!F52))","v":"del  al -1 de  de "}]
[null,"3. OBJETO CONTRACTUAL",null,null,null,null,null,{"$f":"+Ingreso!D30","v":0}]
[null,"4. ¿Requiere Elaborar un Segundo Informe para el mismo mes?",null,null,null,null,null,"SI",null,null,"4.1. Periodo del Segundo Informe\n(2do supervisor del mismo mes)",null,null,null,null,null,null,null,{"$f":"IF(H8=\"SI\",\"al\",\"\")","v":"al"}]
[null,"4.2. Nombre del 2do Supervisor del mismo mes (Si aplica)"]
[null,"5. ¿Requiere Elaborar un Tercer Informe para el mismo mes?",null,null,null,null,null,null,null,null,"5.1. Periodo del Tercer Informe\n(3er supervisor del mismo mes)",null,null,null,null,null,null,null,{"$f":"IF(H10=\"SI\",\"al\",\"\")","v":""}]
[null,"5.2. Nombre del 3er Supervisor del mismo mes (Si aplica)"]
[null,"6. CORRESPONDENCIA:  Proyectar los informes, estudios y respuestas a los derechos de petición y/o solicitudes de entidades y/o comunidad que se formulen a la entidad, absolver las consultas y demás requerimientos, en los plazos legalmente establecidos y realizar el seguimiento a las respuestas proyectadas para la correspondencia asignada a su cargo incorporando dichas respuestas en las bases de datos SIRE y CORDIS previa aprobación del supervisor.",null,null,null,null,null,null,null,null,null,null,null,null,null,"6.1 Pendientes de Meses Anteriores",null,"6.2 Asignadas en el Periodo","6.3 Contestadas  \nen el Periodo",null,"6.4 Pendientes por Responder"]
[null,null,null,null,null,null,null,null,null,null,null,null,null,null,null,null,null,null,null,null,{"$f":"P13+R13-S13","v":0}]
[null,"Efectuar el seguimiento y verificar el cumplimiento de todas y cada una de las obligaciones pactadas, para esto, es fundamental que el Supervisor y el Contratista aseguren que los informes y productos que soportan el pago, reflejen de manera clara y precisa todas las actividades desarrolladas conforme a las obligaciones pactadas en el contrato, con los respectivos soportes y su debida publicación en Secop."]
[null,"7. OBLIGACIONES",null,null,null,null,null,null,null,"8. ACTIVIDADES REALIZADAS",null,null,null,null,null,null,null,null,"9. PRODUCTO"]
[]
[]
[]
[]
[]
[]
[]
[]
[]
[]
[]
[]
[]
[null,"CONTRATISTA",null,null,null,null,null,null,null,"SUPERVISOR",null,null,null,null,null,null,null,null,"APOYO DEL SUPERVISOR"]
[null,{"$f":"+Ingreso!D6","v":0},null,null,null,null,null,null,null,{"$f":"Ingreso!D25","v":0},null,null,null,null,null,null,null,null,{"$f":"IF(OR(Ingreso!D26=\"\",Ingreso!D26=0),\"\",Ingreso!D26)","v":""}]
[]
[null,"Nota: Si este documento se encuentra impreso se considera Copia no Controlada. La versión vigente está publicada en el sitio web del Instituto Distrital de Gestión de Riesgos y Cambio Climático – IDIGER."]

{"sheet":"GF-FT-02 (2do Informe)","index":5,"n_rows":29,"n_cols":21,"rows_kept":29,"cut":false,"hidden":false,"merged":[[13,1,13,8],[13,9,13,17],[13,18,13,20],[14,1,14,8],[14,9,14,17],[14,18,14,20],[6,1,6,6],[6,7,6,20],[0,1,3,7],[0,8,3,18],[4,1,4,20],[5,1,5,6],[5,7,5,9],[5,10,5,15],[5,16,5,20],[1,19,1,20],[3,19,3,20],[7,1,8,14],[7,15,7,16],[7,18,7,19],[8,15,8,16],[8,18,8,19],[10,1,10,8],[10,9,10,17],[10,18,10,20],[11,1,11,8],[11,9,11,17],[11,18,11,20],[21,1,21,8],[15,1,15,8],[15,9,15,17],[15,18,15,20],[16,1,16,8],[16,9,16,17],[16,18,16,20],[21,9,21,17],[21,18,21,20],[22,18,22,20],[23,1,23,8],[23,9,23,17],[23,18,23,20],[17,1,17,8],[17,9,17,17],[17,18,17,20],[18,1,18,8],[18,9,18,17],[18,18,18,20],[19,1,19,8],[19,9,19,17],[19,18,19,20],[20,1,20,8],[20,9,20,17],[20,18,20,20],[9,1,9,20],[12,1,12,8],[12,9,12,17],[12,18,12,20],[28,1,28,8],[28,9,28,18],[28,19,28,20],[24,1,25,8],[24,9,25,17],[24,18,25,20],[26,1,26,20],[27,1,27,8],[27,9,27,18],[27,19,27,20],[22,1,22,8],[22,9,22,17]]}
[null,null,null,null,null,null,null,null,"INFORME DE EJECUCIÓN DE ACTIVIDADES DEL CONTRATO",null,null,null,null,null,null,null,null,null,null,"Código: GF-FT-02"]
[null,null,null,null,null,null,null,null,null,null,null,null,null,null,null,null,null,null,null,"Versión: 5"]
[null,null,null,null,null,null,null,null,null,null,null,null,null,null,null,null,null,null,null,"Página: 2 de 3"]
[null,null,null,null,null,null,null,null,null,null,null,null,null,null,null,null,null,null,null,"Vigente desde: 14/12/2024"]
[]
[null,"1. CONTRATO N°",null,null,null,null,null,{"$f":"Ingreso!D82","v":"/"},null,null,{"$f":"IF('GF-FT-02'!H8=\"SI\",\"2. PERIODO DEL SEGUNDO INFORME\",\"2. PERIODO DEL INFORME\")","v":"2. PERIODO DEL SEGUNDO INFORME"},null,null,null,null,null,{"$f":"CONCATENATE(\"del \",'GF-FT-02'!Q8,\" al \",'GF-FT-02'!T8,\" de \",'GF-FT-02'!R8,\" de \",Ingreso!F52)","v":"del  al  de  de "}]
[null,"3. OBJETO CONTRACTUAL",null,null,null,null,null,{"$f":"+Ingreso!D30","v":0}]
[null,"6. CORRESPONDENCIA:  Proyectar los informes, estudios y respuestas a los derechos de petición y/o solicitudes de entidades y/o comunidad que se formulen a la entidad, absolver las consultas y demás requerimientos, en los plazos legalmente establecidos y realizar el seguimiento a las respuestas proyectadas para la correspondencia asignada a su cargo incorporando dichas respuestas en las bases de datos SIRE y CORDIS previa aprobación del supervisor.",null,null,null,null,null,null,null,null,null,null,null,null,null,"6.1 Pendientes de Meses Anteriores",null,"6.2 Asignadas en el Periodo","6.3 Contestadas  \nen el Periodo",null,"6.4 Pendientes por Responder"]
[null,null,null,null,null,null,null,null,null,null,null,null,null,null,null,null,null,null,null,null,{"$f":"P9+R9-S9","v":0}]
[null,"Efectuar el seguimiento y verificar el cumplimiento de todas y cada una de las obligaciones pactadas, para esto, es fundamental que el Supervisor y el Contratista aseguren que los informes y productos que soportan el pago, reflejen de manera clara y precisa todas las actividades desarrolladas conforme a las obligaciones pactadas en el contrato, con los respectivos soportes y su debida publicación en Secop."]
[null,"7. OBLIGACIONES",null,null,null,null,null,null,null,"8. ACTIVIDADES REALIZADAS",null,null,null,null,null,null,null,null,"9. PRODUCTO"]
[]
[]
[]
[]
[]
[]
[]
[]
[]
[]
[]
[]
[null,"CONTRATISTA",null,null,null,null,null,null,null,"SUPERVISOR",null,null,null,null,null,null,null,null,"APOYO DEL SUPERVISOR"]
[null,{"$f":"+Ingreso!D6","v":0},null,null,null,null,null,null,null,{"$f":"IF(OR('GF-FT-02'!H9=\"\",'GF-FT-02'!H9=0),\"\",'GF-FT-02'!H9)","v":""},null,null,null,null,null,null,null,null,{"$f":"IF(OR(Ingreso!D26=\"\",Ingreso!D26=0),\"\",Ingreso!D26)","v":""}]
[]
[null,"Nota: Si este documento se encuentra impreso se considera Copia no Controlada. La versión vigente está publicada en el sitio web del Instituto Distrital de Gestión de Riesgos y Cambio Climático – IDIGER."]
[null,"ELABORADO POR",null,null,null,null,null,null,null,"REVISADO POR",null,null,null,null,null,null,null,null,null,"APROBADO POR"]
[null,"SANDRA CAYCEDO MOYANO\nProfesional Planeación Estratégica - DG (Pl)",null,null,null,null,null,null,null,"JOSE LEONARDO MILLAN \nProfesional Planeación Estratégica - DG (Pl)\n\nCLAUDIA CECILIA SUNA LADINO \nCoordinación de Gestión de Pagos",null,null,null,null,null,null,null,null,null,"CAROLINA ABUSAID GRAÑA\nSubdirector Corporativo y Asuntos Disciplinarios\n\nDAVID VALDÉS CRUZ  \nAsesor de Planeación Estratégica"]

{"sheet":"GF-FT-02 (3er Informe)","index":6,"n_rows":29,"n_cols":21,"rows_kept":29,"cut":false,"hidden":false,"merged":[[28,1,28,8],[28,9,28,18],[28,19,28,20],[24,1,25,8],[24,9,25,17],[24,18,25,20],[26,1,26,20],[27,1,27,8],[27,9,27,18],[27,19,27,20],[22,1,22,8],[22,9,22,17],[22,18,22,20],[23,1,23,8],[23,9,23,17],[23,18,23,20],[20,1,20,8],[20,9,20,17],[20,18,20,20],[21,1,21,8],[21,9,21,17],[21,18,21,20],[18,1,18,8],[18,9,18,17],[18,18,18,20],[19,1,19,8],[19,9,19,17],[19,18,19,20],[16,1,16,8],[16,9,16,17],[16,18,16,20],[17,1,17,8],[17,9,17,17],[17,18,17,20],[14,1,14,8],[14,9,14,17],[14,18,14,20],[15,1,15,8],[15,9,15,17],[15,18,15,20],[9,1,9,20],[12,1,12,8],[12,9,12,17],[12,18,12,20],[13,1,13,8],[13,9,13,17],[13,18,13,20],[10,1,10,8],[10,9,10,17],[10,18,10,20],[11,1,11,8],[11,9,11,17],[11,18,11,20],[0,1,3,7],[0,8,3,18],[1,19,1,20],[4,1,4,20],[5,1,5,6],[5,7,5,9],[5,10,5,15],[5,16,5,20],[3,19,3,20],[6,1,6,6],[6,7,6,20],[7,1,8,14],[7,15,7,16],[7,18,7,19],[8,15,8,16],[8,18,8,19]]}
[null,null,null,null,null,null,null,null,"INFORME DE EJECUCIÓN DE ACTIVIDADES DEL CONTRATO",null,null,null,null,null,null,null,null,null,null,"Código: GF-FT-02"]
[null,null,null,null,null,null,null,null,null,null,null,null,null,null,null,null,null,null,null,"Versión: 5"]
[null,null,null,null,null,null,null,null,null,null,null,null,null,null,null,null,null,null,null,"Página: 3 de 3"]
[null,null,null,null,null,null,null,null,null,null,null,null,null,null,null,null,null,null,null,"Vigente desde: 14/12/2024"]
[]
[null,"1. CONTRATO N°",null,null,null,null,null,{"$f":"Ingreso!D82","v":"/"},null,null,{"$f":"IF('GF-FT-02'!H10=\"SI\",\"2. PERIODO DEL TERCER INFORME\",\"2. PERIODO DEL INFORME\")","v":"2. PERIODO DEL INFORME"},null,null,null,null,null,{"$f":"CONCATENATE(\"del \",'GF-FT-02'!Q10,\" al \",'GF-FT-02'!T10,\" de \",'GF-FT-02'!R10,\" de \",Ingreso!F52)","v":"del  al  de  de "}]
[null,"3. OBJETO CONTRACTUAL",null,null,null,null,null,{"$f":"+Ingreso!D30","v":0}]
[null,"6. CORRESPONDENCIA:  Proyectar los informes, estudios y respuestas a los derechos de petición y/o solicitudes de entidades y/o comunidad que se formulen a la entidad, absolver las consultas y demás requerimientos, en los plazos legalmente establecidos y realizar el seguimiento a las respuestas proyectadas para la correspondencia asignada a su cargo incorporando dichas respuestas en las bases de datos SIRE y CORDIS previa aprobación del supervisor.",null,null,null,null,null,null,null,null,null,null,null,null,null,"6.1 Pendientes de Meses Anteriores",null,"6.2 Asignadas en el Periodo","6.3 Contestadas  \nen el Periodo",null,"6.4 Pendientes por Responder"]
[null,null,null,null,null,null,null,null,null,null,null,null,null,null,null,null,null,null,null,null,{"$f":"P9+R9-S9","v":0}]
[null,"Efectuar el seguimiento y verificar el cumplimiento de todas y cada una de las obligaciones pactadas, para esto, es fundamental que el Supervisor y el Contratista aseguren que los informes y productos que soportan el pago, reflejen de manera clara y precisa todas las actividades desarrolladas conforme a las obligaciones pactadas en el contrato, con los respectivos soportes y su debida publicación en Secop."]
[null,"7. OBLIGACIONES",null,null,null,null,null,null,null,"8. ACTIVIDADES REALIZADAS",null,null,null,null,null,null,null,null,"9. PRODUCTO"]
[]
[]
[]
[]
[]
[]
[]
[]
[]
[]
[]
[]
[null,"CONTRATISTA",null,null,null,null,null,null,null,"SUPERVISOR",null,null,null,null,null,null,null,null,"APOYO DEL SUPERVISOR"]
[null,{"$f":"+Ingreso!D6","v":0},null,null,null,null,null,null,null,{"$f":"IF(OR('GF-FT-02'!H11=\"\",'GF-FT-02'!H11=0),\"\",'GF-FT-02'!H11)","v":""},null,null,null,null,null,null,null,null,{"$f":"IF(OR(Ingreso!D26=\"\",Ingreso!D26=0),\"\",Ingreso!D26)","v":""}]
[]
[null,"Nota: Si este documento se encuentra impreso se considera Copia no Controlada. La versión vigente está publicada en el sitio web del Instituto Distrital de Gestión de Riesgos y Cambio Climático – IDIGER."]
[null,"ELABORADO POR",null,null,null,null,null,null,null,"REVISADO POR",null,null,null,null,null,null,null,null,null,"APROBADO POR"]
[null,"SANDRA CAYCEDO MOYANO\nProfesional Planeación Estratégica - DG (Pl)",null,null,null,null,null,null,null,"JOSE LEONARDO MILLAN \nProfesional Planeación Estratégica - DG (Pl)\n\nCLAUDIA CECILIA SUNA LADINO \nCoordinación de Gestión de Pagos",null,null,null,null,null,null,null,null,null,"CAROLINA ABUSAID GRAÑA\nSubdirector Corporativo y Asuntos Disciplinarios\n\nDAVID VALDÉS CRUZ  \nAsesor de Planeación Estratégica"]

{"sheet":"IDIGER_CUENTA DE COBRO","index":7,"n_rows":33,"n_cols":20,"rows_kept":33,"cut":false,"hidden":false,"merged":[[30,0,30,6],[30,7,30,22],[31,0,31,6],[31,7,31,22],[32,0,32,6],[32,7,32,22],[27,0,27,6],[27,7,27,22],[28,0,28,6],[28,7,28,22],[29,0,29,6],[29,7,29,22],[26,0,26,6],[26,7,26,22],[7,0,7,22],[8,0,8,8],[8,9,8,22],[9,0,9,22],[10,0,10,22],[11,0,14,22],[15,0,16,22],[18,0,18,22],[20,0,21,22],[23,0,23,22],[24,0,24,22],[6,0,6,22],[0,0,0,22],[1,0,1,22],[3,0,3,18],[3,19,3,20],[5,0,5,22]]}
["INSTITUTO DISTRITAL DE GESTIÓN DE RIESGOS Y CAMBIO CLIMÁTICO - IDIGER"]
["NIT. 800.154.275-1"]
[]
["CUENTA DE COBRO No.",null,null,null,null,null,null,null,null,null,null,null,null,null,null,null,null,null,null,{"$f":"CONCATENATE(Ingreso!D67,\" de \",Ingreso!D68)","v":" de "}]
[]
[{"$f":"IF(J9=\"COMÚN\",\"CERTIFICADO PARA LA RETENCIÓN EN LA FUENTE\",\"DEBE A:\")","v":"DEBE A:"}]
[{"$f":"Ingreso!D6","v":0}]
[{"$f":"CONCATENATE(\"CC. No.  \",Ingreso!D7,\" de \",Ingreso!D8)","v":"CC. No.   de "}]
["RÉGIMEN:",null,null,null,null,null,null,null,null,{"$f":"Ingreso!D19","v":0}]
[{"$f":"CONCATENATE(\"ACTIVIDAD ECONOMICA: \",Ingreso!D17,IF(Ingreso!D17=9101,\"\",CONCATENATE(\" - \",Ingreso!D18,\" X 1000\")))","v":"ACTIVIDAD ECONOMICA:  -  X 1000"}]
[]
[{"$f":"Ingreso!D76","v":"Por concepto de  al Instituto Distrital de Gestión de Riesgos y Cambio Climático, según contrato de Prestación de Servicios No. PS - /, durante el periodo comprendido entre el  al  de  , la suma de  . ($)"}]
[]
[]
[]
[{"$f":"IF(OR(Ingreso!D36=\"AFC\",Ingreso!D36=\"AFP\"),CONCATENATE(\"Favor consignar a la cuenta \",Ingreso!D36,\" No. \",Ingreso!D37,\" del Banco \",Ingreso!F37,\" la suma de \",Ingreso!D39,\" (\",Ingreso!D38,\")\"),\"\")","v":""}]
[]
[]
[{"$f":"IF(OR(Ingreso!D36=\"AFC\",Ingreso!D36=\"AFP\"),CONCATENATE(\"Favor consignar el saldo a la cuenta \",Ingreso!D35,\" del Banco \",Ingreso!D34,\" No: \",Ingreso!D33),\nCONCATENATE(\"Favor consignar a la cuenta \",Ingreso!D35,\" del Banco \",Ingreso!D34,\" No: \",Ingreso!D33))","v":"Favor consignar a la cuenta  del Banco  No: "}]
[]
[{"$f":"IFERROR(Ingreso!D87,\"\")","v":""}]
[]
[]
[{"$f":"Ingreso!D6","v":0}]
[{"$f":"CONCATENATE(\"CC. No.  \",Ingreso!D7,\" de \",Ingreso!D8)","v":"CC. No.   de "}]
[]
["Dirección de Residencia:",null,null,null,null,null,null,{"$f":"Ingreso!D9","v":0}]
["Ciudad de Residencia:",null,null,null,null,null,{"$f":"Ingreso!D9","v":0},{"$f":"Ingreso!D10","v":0}]
["Código Postal:",null,null,null,null,null,null,{"$f":"Ingreso!D11","v":0}]
["Teléfono:",null,null,null,null,null,null,{"$f":"Ingreso!D12","v":0}]
["Correo Electrónico:",null,null,null,null,null,null,{"$f":"Ingreso!D13","v":0}]
["Ciudad donde se Prestó el Servicio o se adquirió el bien:",null,null,null,null,null,null,{"$f":"Ingreso!D14","v":0}]
["Nit con digito de verificación:",null,null,null,null,null,null,{"$f":"CONCATENATE(Ingreso!D15,\" - \",Ingreso!F15)","v":" - "}]

{"sheet":"GF-FT-41","index":8,"n_rows":37,"n_cols":21,"rows_kept":37,"cut":false,"hidden":false,"merged":[[20,1,20,3],[20,4,20,19],[22,1,22,9],[22,10,22,14],[22,15,22,17],[22,18,22,20],[21,0,21,20],[24,1,24,9],[24,10,24,14],[24,15,24,17],[24,18,24,20],[23,1,23,9],[23,10,23,14],[23,15,23,17],[23,18,23,20],[0,0,3,4],[0,5,3,16],[0,17,0,21],[1,17,1,21],[2,17,2,21],[3,17,3,21],[13,1,13,19],[5,0,5,1],[5,2,5,21],[6,11,6,15],[19,1,19,3],[19,4,19,19],[15,0,15,19],[16,1,17,3],[16,4,16,19],[17,4,17,19],[18,1,18,3],[18,4,18,19],[6,0,6,10],[14,0,14,19],[33,15,33,20],[25,1,25,9],[25,10,25,14],[25,15,25,17],[25,18,25,20],[34,0,34,5],[34,6,34,7],[36,0,36,21],[4,0,4,21],[9,1,9,19],[10,1,10,19],[11,1,11,19],[12,1,12,19],[8,0,8,19],[6,17,6,21],[7,0,7,21],[27,1,29,20],[30,0,30,21],[32,3,32,9],[32,15,32,20],[33,3,33,9]]}
[null,null,null,null,null,"DECLARACIÓN JURAMENTADA PARA PAGOS DE CONTRATOS DE PRESTACIÓN DE SERVICIOS PERSONALES",null,null,null,null,null,null,null,null,null,null,null,"Código: GF-FT-41"]
[null,null,null,null,null,null,null,null,null,null,null,null,null,null,null,null,null,"Versión: 3"]
[null,null,null,null,null,null,null,null,null,null,null,null,null,null,null,null,null,"Pagina: 1 de 1"]
[null,null,null,null,null,null,null,null,null,null,null,null,null,null,null,null,null,"Vigente desde: 27/03/2024"]
[]
["Yo,",null,{"$f":"Ingreso!D6","v":0}]
["Identificado(a) con cedula de ciudadanía No.",null,null,null,null,null,null,null,null,null,null,{"$f":"Ingreso!D7","v":0},null,null,null,null,"de:",{"$f":"Ingreso!D8","v":0}]
[]
["1. De conformidad con el artículo 1 del Decreto 1070 de 2013 manifiesto bajo gravedad de juramento lo siguiente:",null,null,null,null,null,null,null,null,null,null,null,null,null,null,null,null,null,null,null,"Seleccione"]
[null,"En el año inmediatamente anterior o en el año en curso, mis ingresos provenientes del desempeño de mis actividades por prestación de servicios como persona natural donde se derivan mis ingresos de contratos con el Estado, no superan 4.000 UVT (Valor de la Unidad de Valor Tributario) (Puede consultar el valor UVT vigente en https://www.dian.gov.co)"]
[null,"Estoy obligado(a) a presentar declaración de renta por el año gravable inmediatamente anterior."]
[null,"De conformidad con el parágrafo 2 del artículo 383 del Estatuto Tributario, y para efectos de aplicar la tabla de retención en la fuente por salarios, he contratado o vinculado dos (2) o más trabajadores asociados para la ejecución del contrato."]
[null,"Declaro que mi base de cotización al sistema de seguridad social no excede de 25 salarios mínimos legales mensuales, de que trata el artículo 3 del Decreto 510 de 2003."]
[null,{"$f":"CONCATENATE(\"Efectúo los aportes a la seguridad social cumpliendo con mis obligaciones como contratista,\",\" según lo establecido en la cláusula respectiva del contrato, en el artículo 4 del Decreto 2271 de 2019, en el articulo 126-1 del Estatuto Tributario \",\"y en el artículo 3 del Decreto 1070 de 2013, y que estos corresponden exclusivamente a los ingresos provenientes del contrato No.\",Ingreso!D21,\" suscrito en el año \",Ingreso!F21,\" con el Instituto Distrital de Gestión de Riesgos y Cambio Climático.\")","v":"Efectúo los aportes a la seguridad social cumpliendo con mis obligaciones como contratista, según lo establecido en la cláusula respectiva del contrato, en el artículo 4 del Decreto 2271 de 2019, en el articulo 126-1 del Estatuto Tributario y en el artículo 3 del Decreto 1070 de 2013, y que estos corresponden exclusivamente a los ingresos provenientes del contrato No. suscrito en el año  con el Instituto Distrital de Gestión de Riesgos y Cambio Climático."}]
["2. De conformidad con el artículo 9 del Decreto 2231 de 2023, manifiesto bajo la gravedad de juramento que (NO / SI) se tomarán costos o deducciones asociadas a rentas por concepto de trabajo que no provengan de una relación laboral, legal y reglamentaria."]
["3. Para efectos de depuración de la base de retención en la fuente para aquellas personas naturales en virtud del artículo 17 de la ley 1819 de 2016 y el artículo 34 de la ley de financiamiento 1943 del 28 de diciembre de 2018 y la ley de crecimiento económico 2010 de 2019, los cuales modifica en el inciso y la tabla del artículo 383 del Estatuto tributario, adjunto la siguientes información con sus respectivos soportes:",null,null,null,null,null,null,null,null,null,null,null,null,null,null,null,null,null,null,null,"¿Anexa Soportes?"]
[null,"CREDITO DE VIVIENDA",null,null,"Certificación de préstamo para adquisición de vivienda, expedida por una Entidad Financiera vigilada por la Superintendencia Financiera de Colombia, en la que consta el valor cancelado por intereses o corrección monetaria durante al año inmediatamente anterior.                                                                                    ",null,null,null,null,null,null,null,null,null,null,null,null,null,null,null,{"$f":"IF(Ingreso!D40>0,\"SI\",\"NO APLICA\")","v":"NO APLICA"}]
[null,null,null,null,"Así mismo manifiesto que el crédito fue adquirido en compañía de mi (cónyuge o compañero(a)), quien hará uso de este beneficio (En el caso de que su respuesta sea afirmativa, adjuntar carta que demuestre el porcentaje de deducción que aplica a cada persona)                                                                                    ",null,null,null,null,null,null,null,null,null,null,null,null,null,null,null,{"$f":"IF(Ingreso!D41=\"SI\",\"SI\",\"NO APLICA\")","v":"NO APLICA"}]
[null,"MEDICINA PREPAGADA",null,null,"Pagos por medicina prepagada del año inmediatamente anterior. (En el caso de que su respuesta sea afirmativa, adjuntar certificación de pagos por medicina prepagada del año inmediatamente anterior).                        ",null,null,null,null,null,null,null,null,null,null,null,null,null,null,null,{"$f":"IF(Ingreso!D42>0,\"SI\",\"NO APLICA\")","v":"NO APLICA"}]
[null,"CUENTA AFC",null,null,{"$f":"IF(Ingreso!D36=\"AFC\",CONCATENATE(\"Certificación cuenta de ahorro A.F.C., expedida por una entidad vigilada por la Superintendencia Financiera de Colombia, a la cual autorizo girar la suma de (en letras) \",Ingreso!D39,\" ($ \",Ingreso!D38,\" ) mensuales (En caso de que su respuesta sea afirmativa, adjuntar planilla de  cuenta de ahorro AFC debidamente diligenciada de la entidad financiera).\"),\nCONCATENATE(\"Certificación cuenta de ahorro A.F.C., expedida por una entidad vigilada por la Superintendencia Financiera de Colombia, a la cual autorizo girar la suma de (en letras) \",\"__________________________________________\",\" ($ ______________________) mensuales (En caso de que su respuesta sea afirmativa, adjuntar planilla de  cuenta de ahorro AFC debidamente diligenciada de la entidad financiera).\"))","v":"Certificación cuenta de ahorro A.F.C., expedida por una entidad vigilada por la Superintendencia Financiera de Colombia, a la cual autorizo girar la suma de (en letras) __________________________________________ ($ ______________________) mensuales (En caso de que su respuesta sea afirmativa, adjuntar planilla de  cuenta de ahorro AFC debidamente diligenciada de la entidad financiera)."},null,null,null,null,null,null,null,null,null,null,null,null,null,null,null,{"$f":"IF(Ingreso!D36=\"AFC\",\"SI\",\"NO APLICA\")","v":"NO APLICA"}]
[null,"APORTE VOLUNTARIO A PENSIONES",null,null,{"$f":"IF(Ingreso!D36=\"AFP\",CONCATENATE(\"Certificación de aportes voluntarios, expedida por un Fondo de Pensiones vigilado por la Superintendencia Financiera de Colombia, cuenta No. \",Ingreso!D37,\", a la cual autorizo girar la suma de (en letras) \",Ingreso!D39,\", ($ \",Ingreso!D38,\" ) mensuales.\"),\nCONCATENATE(\"Certificación de aportes voluntarios, expedida por un Fondo de Pensiones vigilado por la Superintendencia Financiera de Colombia, cuenta No. \", \"____________________________,\",\" a la cual autorizo girar la suma de (en letras) \",\"_______________________________\",\" ($ ______________________) mensuales.\"))","v":"Certificación de aportes voluntarios, expedida por un Fondo de Pensiones vigilado por la Superintendencia Financiera de Colombia, cuenta No. ____________________________, a la cual autorizo girar la suma de (en letras) _______________________________ ($ ______________________) mensuales."},null,null,null,null,null,null,null,null,null,null,null,null,null,null,null,{"$f":"IF(Ingreso!D36=\"AFP\",\"SI\",\"NO APLICA\")","v":"NO APLICA"}]
["4. En lo dispuesto en el decreto 99 de 2013, manifiesto de manera libre y voluntaria que, las personas relacionadas a continuación se encuentran bajo mi responsabilidad y dependen económicamente de mi."]
[null,"NOMBRES Y APELLIDOS",null,null,null,null,null,null,null,null,"DOCUMENTO DE IDENTIDAD",null,null,null,null,"EDAD",null,null,"PARENTESCO"]
[]
[]
[]
[]
[null,"* Hijo(s) menores de 18 años que dependen económicamente del contratista (adjuntar copia del registro civil)\n* Si está financiando la educación de un hijo(s) entre 18 y 23 años, en una institución formal de educación superior certificada por el ICFES o autoridad oficial correspondiente, o en programas técnicos de educación no formal debidamente acreditados por la autoridad competente (adjuntar registro civil y copia del pago realizado de la matrícula expedida por la respectiva institución educativa)\n* Hijo(s) mayores de 23 años, padres, hermanos, cónyuges compañeros permanentes que se encuentren en situación de dependencia originada en factores físicos o psicológicos. (adjuntar dictamen médico expedido por Medicina Legal o las Empresas Administradoras de Salud)\n* Padres, hermanos, cónyuge o compañero permanente que se encuentre en situación de dependencia, por ausencia de ingresos en el año menores a 260 UVT por ingresos (adjuntar certificado por contador Publico y copia de la tarjeta profesional) \n"]
[]
[]
["En constancia firmo:"]
[]
[null,null,null,"Firma:",null,null,null,null,null,null,null,null,null,null,null,{"$f":"Ingreso!D88","v":"Bogotá D.C.,  de  de de  "}]
[null,null,null,{"$f":"Ingreso!D6","v":0},null,null,null,null,null,null,null,null,null,null,null,"CIUDAD Y FECHA"]
["No. de folios que se anexan:"]
[]
["Nota: Si este documento se encuentra impreso se considera Copia no Controlada. La versión vigente está publicada en el sitio web del Instituto Distrital de Gestión de Riesgos y Cambio Climático – IDIGER."]

{"sheet":"POPULAR_DEC DEDUCCIONES","index":9,"n_rows":29,"n_cols":21,"rows_kept":29,"cut":false,"hidden":false,"merged":[[28,0,28,5],[28,6,28,7],[30,0,30,21],[0,5,3,21],[21,1,23,20],[24,0,24,21],[26,3,26,9],[26,15,26,20],[27,3,27,9],[27,15,27,20],[18,1,18,9],[18,10,18,14],[18,15,18,17],[18,18,18,20],[19,1,19,9],[19,10,19,14],[19,15,19,17],[19,18,19,20],[15,0,15,19],[16,1,16,9],[16,10,16,14],[16,15,16,17],[16,18,16,20],[17,1,17,9],[17,10,17,14],[17,15,17,17],[17,18,17,20],[12,1,12,3],[12,4,12,19],[13,1,13,3],[13,4,13,19],[14,1,14,3],[14,4,14,19],[8,0,8,19],[9,0,9,19],[10,1,11,3],[10,4,10,19],[11,4,11,19],[7,0,7,19],[0,0,3,4],[4,0,4,21],[5,0,5,1],[5,2,5,21],[6,0,6,10],[6,11,6,15],[6,17,6,21]]}
[null,null,null,null,null,"DECLARACIÓN JURAMENTADA PARA PAGOS DE CONTRATOS DE PRESTACIÓN DE SERVICIOS PERSONALES"]
[]
[]
[]
[]
["Yo,",null,{"$f":"Ingreso!D6","v":0}]
["Identificado(a) con cedula de ciudadanía No.",null,null,null,null,null,null,null,null,null,null,{"$f":"Ingreso!D7","v":0},null,null,null,null,"de:",{"$f":"Ingreso!D8","v":0}]
[null,null,null,null,null,null,null,null,null,null,null,null,null,null,null,null,null,null,null,null,"Seleccione"]
["1. De conformidad con el artículo 9 del Decreto 2231 de 2023, manifiesto bajo la gravedad de juramento que (NO / SI) se tomarán costos o deducciones asociadas a rentas por concepto de trabajo que no provengan de una relación laboral, legal y reglamentaria."]
["2. Y cumplo todos los requisitos establecidos para que me sea aplicado lo dispuesto en el articulo 383 del Estatuto tributario. Adjunto la siguiente información con los respectivos soportes:",null,null,null,null,null,null,null,null,null,null,null,null,null,null,null,null,null,null,null,"¿Anexa Soportes?"]
[null,"CREDITO DE VIVIENDA",null,null,"Certificación de préstamo para adquisición de vivienda, expedida por una Entidad Financiera vigilada por la Superintendencia Financiera de Colombia, en la que consta el valor cancelado por intereses o corrección monetaria durante al año inmediatamente anterior.                                                                                    ",null,null,null,null,null,null,null,null,null,null,null,null,null,null,null,{"$f":"IF(Ingreso!D40>0,\"SI\",\"NO APLICA\")","v":"NO APLICA"}]
[null,null,null,null,"Así mismo manifiesto que el crédito fue adquirido en compañía de mi (cónyuge o compañero(a)), quien hará uso de este beneficio (En el caso de que su respuesta sea afirmativa, adjuntar carta que demuestre el porcentaje de deducción que aplica a cada persona)                                                                                    ",null,null,null,null,null,null,null,null,null,null,null,null,null,null,null,{"$f":"IF(Ingreso!D41=\"SI\",\"SI\",\"NO APLICA\")","v":"NO APLICA"}]
[null,"MEDICINA PREPAGADA",null,null,"Pagos por medicina prepagada del año inmediatamente anterior. (En el caso de que su respuesta sea afirmativa, adjuntar certificación de pagos por medicina prepagada del año inmediatamente anterior).                        ",null,null,null,null,null,null,null,null,null,null,null,null,null,null,null,{"$f":"IF(Ingreso!D42>0,\"SI\",\"NO APLICA\")","v":"NO APLICA"}]
[null,"CUENTA AFC",null,null,{"$f":"IF(Ingreso!D36=\"AFC\",CONCATENATE(\"Certificación cuenta de ahorro A.F.C., expedida por una entidad vigilada por la Superintendencia Financiera de Colombia, a la cual autorizo girar la suma de (en letras) \",Ingreso!D39,\" ($ \",Ingreso!D38,\" ) mensuales (En caso de que su respuesta sea afirmativa, adjuntar planilla de  cuenta de ahorro AFC debidamente diligenciada de la entidad financiera).\"),\nCONCATENATE(\"Certificación cuenta de ahorro A.F.C., expedida por una entidad vigilada por la Superintendencia Financiera de Colombia, a la cual autorizo girar la suma de (en letras) \",\"__________________________________________\",\" ($ ______________________) mensuales (En caso de que su respuesta sea afirmativa, adjuntar planilla de  cuenta de ahorro AFC debidamente diligenciada de la entidad financiera).\"))","v":"Certificación cuenta de ahorro A.F.C., expedida por una entidad vigilada por la Superintendencia Financiera de Colombia, a la cual autorizo girar la suma de (en letras) __________________________________________ ($ ______________________) mensuales (En caso de que su respuesta sea afirmativa, adjuntar planilla de  cuenta de ahorro AFC debidamente diligenciada de la entidad financiera)."},null,null,null,null,null,null,null,null,null,null,null,null,null,null,null,{"$f":"IF(Ingreso!D36=\"AFC\",\"SI\",\"NO APLICA\")","v":"NO APLICA"}]
[null,"APORTE VOLUNTARIO A PENSIONES",null,null,{"$f":"IF(Ingreso!D36=\"AFP\",CONCATENATE(\"Certificación de aportes voluntarios, expedida por un Fondo de Pensiones vigilado por la Superintendencia Financiera de Colombia, cuenta No. \",Ingreso!D37,\", a la cual autorizo girar la suma de (en letras) \",Ingreso!D39,\", ($ \",Ingreso!D38,\" ) mensuales.\"),\nCONCATENATE(\"Certificación de aportes voluntarios, expedida por un Fondo de Pensiones vigilado por la Superintendencia Financiera de Colombia, cuenta No. \", \"____________________________,\",\" a la cual autorizo girar la suma de (en letras) \",\"_______________________________\",\" ($ ______________________) mensuales.\"))","v":"Certificación de aportes voluntarios, expedida por un Fondo de Pensiones vigilado por la Superintendencia Financiera de Colombia, cuenta No. ____________________________, a la cual autorizo girar la suma de (en letras) _______________________________ ($ ______________________) mensuales."},null,null,null,null,null,null,null,null,null,null,null,null,null,null,null,{"$f":"IF(Ingreso!D36=\"AFP\",\"SI\",\"NO APLICA\")","v":"NO APLICA"}]
["3. En lo dispuesto en el decreto 99 de 2013, manifiesto de manera libre y voluntaria que, las personas relacionadas a continuación se encuentran bajo mi responsabilidad y dependen económicamente de mi."]
[null,"NOMBRES Y APELLIDOS",null,null,null,null,null,null,null,null,"DOCUMENTO DE IDENTIDAD",null,null,null,null,"EDAD",null,null,"PARENTESCO"]
[]
[]
[]
[]
[null,"* Hijo(s) menores de 18 años que dependen económicamente del contratista (adjuntar copia del registro civil)\n* Si está financiando la educación de un hijo(s) entre 18 y 23 años, en una institución formal de educación superior certificada por el ICFES o autoridad oficial correspondiente, o en programas técnicos de educación no formal debidamente acreditados por la autoridad competente (adjuntar registro civil y copia del pago realizado de la matrícula expedida por la respectiva institución educativa)\n* Hijo(s) mayores de 23 años, padres, hermanos, cónyuges compañeros permanentes que se encuentren en situación de dependencia originada en factores físicos o psicológicos. (adjuntar dictamen médico expedido por Medicina Legal o las Empresas Administradoras de Salud)\n* Padres, hermanos, cónyuge o compañero permanente que se encuentre en situación de dependencia, por ausencia de ingresos en el año menores a 260 UVT por ingresos (adjuntar certificado por contador Publico y copia de la tarjeta profesional) \n"]
[]
[]
["En constancia firmo:"]
[]
[null,null,null,"Firma:",null,null,null,null,null,null,null,null,null,null,null,{"$f":"Ingreso!D88","v":"Bogotá D.C.,  de  de de  "}]
[null,null,null,{"$f":"Ingreso!D6","v":0},null,null,null,null,null,null,null,null,null,null,null,"CIUDAD Y FECHA"]
["No. de folios que se anexan:"]

{"sheet":"POPULAR_CUENTA DE COBRO","index":10,"n_rows":33,"n_cols":20,"rows_kept":33,"cut":false,"hidden":false,"merged":[[11,0,14,22],[0,0,0,22],[1,0,1,22],[3,0,3,18],[3,19,3,20],[5,0,5,22],[6,0,6,22],[7,0,7,22],[8,0,8,8],[8,9,8,22],[9,0,9,22],[10,0,10,22],[26,0,26,6],[26,7,26,22],[27,0,27,6],[27,7,27,22],[28,0,28,6],[28,7,28,22],[18,0,18,22],[15,0,16,22],[20,0,21,22],[23,0,23,22],[24,0,24,22],[32,0,32,6],[32,7,32,22],[29,7,29,22],[30,0,30,6],[30,7,30,22],[31,0,31,6],[31,7,31,22],[29,0,29,6]]}
["FIDUCIARIA POPULAR S.A."]
["NIT. 800.141.235-0"]
[]
["CUENTA DE COBRO No.",null,null,null,null,null,null,null,null,null,null,null,null,null,null,null,null,null,null,{"$f":"CONCATENATE(Ingreso!D67,\" de \",Ingreso!D68)","v":" de "}]
[]
[{"$f":"IF(J9=\"COMÚN\",\"CERTIFICADO PARA LA RETENCIÓN EN LA FUENTE\",\"DEBE A:\")","v":"DEBE A:"}]
[{"$f":"Ingreso!D6","v":0}]
[{"$f":"CONCATENATE(\"CC. No.  \",Ingreso!D7,\" de \",Ingreso!D8)","v":"CC. No.   de "}]
["RÉGIMEN:",null,null,null,null,null,null,null,null,{"$f":"Ingreso!D19","v":0}]
[{"$f":"CONCATENATE(\"ACTIVIDAD ECONOMICA: \",Ingreso!D17,IF(Ingreso!D17=9101,\"\",CONCATENATE(\" - \",Ingreso!D18,\" X 1000\")))","v":"ACTIVIDAD ECONOMICA:  -  X 1000"}]
[]
[{"$f":"Ingreso!D76","v":"Por concepto de  al Instituto Distrital de Gestión de Riesgos y Cambio Climático, según contrato de Prestación de Servicios No. PS - /, durante el periodo comprendido entre el  al  de  , la suma de  . ($)"}]
[]
[]
[]
[{"$f":"IF(OR(Ingreso!D36=\"AFC\",Ingreso!D36=\"AFP\"),CONCATENATE(\"Favor consignar a la cuenta \",Ingreso!D36,\" No. \",Ingreso!D37,\" del Banco \",Ingreso!F37,\" la suma de \",Ingreso!D39,\" (\",Ingreso!D38,\")\"),\"\")","v":""}]
[]
[]
[{"$f":"IF(OR(Ingreso!D36=\"AFC\",Ingreso!D36=\"AFP\"),CONCATENATE(\"Favor consignar el saldo a la cuenta \",Ingreso!D35,\" del Banco \",Ingreso!D34,\" No: \",Ingreso!D33),\nCONCATENATE(\"Favor consignar a la cuenta \",Ingreso!D35,\" del Banco \",Ingreso!D34,\" No: \",Ingreso!D33))","v":"Favor consignar a la cuenta  del Banco  No: "}]
[]
[{"$f":"IFERROR(Ingreso!D87,\"\")","v":""}]
[]
[]
[{"$f":"Ingreso!D6","v":0}]
[{"$f":"CONCATENATE(\"CC. No.  \",Ingreso!D7,\" de \",Ingreso!D8)","v":"CC. No.   de "}]
[]
["Dirección de Residencia:",null,null,null,null,null,null,{"$f":"Ingreso!D9","v":0}]
["Ciudad de Residencia:",null,null,null,null,null,{"$f":"Ingreso!D9","v":0},{"$f":"Ingreso!D10","v":0}]
["Código Postal:",null,null,null,null,null,null,{"$f":"Ingreso!D11","v":0}]
["Teléfono:",null,null,null,null,null,null,{"$f":"Ingreso!D12","v":0}]
["Correo Electrónico:",null,null,null,null,null,null,{"$f":"Ingreso!D13","v":0}]
["Ciudad donde se Prestó el Servicio o se adquirió el bien:",null,null,null,null,null,null,{"$f":"Ingreso!D14","v":0}]
["Nit con digito de verificación:",null,null,null,null,null,null,{"$f":"CONCATENATE(Ingreso!D15,\" - \",Ingreso!F15)","v":" - "}]

{"sheet":"POPULAR_S.S.","index":11,"n_rows":34,"n_cols":5,"rows_kept":34,"cut":false,"hidden":false,"merged":[[31,0,31,22],[33,0,35,22],[1,4,1,12],[4,0,4,22],[5,0,5,22],[7,0,22,22],[24,0,26,22],[30,0,30,22]]}
[]
["Bogotá D.C., ",null,null,null,{"$f":"Ingreso!D91","v":" de  "}]
[]
["Señores"]
["FIDUCIARIA POPULAR S.A."]
["NIT. 800.141.235-0"]
[]
[{"$f":"CONCATENATE(Ingreso!D72,Ingreso!D73)","v":"Yo,  identificado con la cédula de ciudadanía No.  expedida en  en mi condición de contratista del INSTITUTO DISTRITAL DE GESTION DE RIESGOS Y CAMBIO CLIMÁTICO NIT. 800.154.275-1, según contrato de prestación de servicios No.  con fecha de inicio del  de  , declaro bajo la gravedad del juramento, en los términos establecidos en el parágrafo 1º del artículo 4º del Decreto 2271 de 2009 y el artículo 126-1 del Estatuto Tributario, que los documentos soportes del pago de aporte obligatorio a los sistemas de salud y pensión, cuya fotocopia acompaño junto con la presente cuenta de cobro, corresponden a los ingresos provenientes exclusivamente del contrato materia del pago sujeto a retención, que mi base de cotización al sistema de seguridad social no excede de 25 salarios mínimos legales mensuales, de que trata el artículo 3 del Decreto 510 de 2003."}]
[]
[]
[]
[]
[]
[]
[]
[]
[]
[]
[]
[]
[]
[]
[]
["Cordialmente,"]
[]
[]
[]
[]
[]
[]
[{"$f":"Ingreso!D6","v":0}]
[{"$f":"CONCATENATE(\"CC. No.  \",Ingreso!D7,\" de \",Ingreso!D8)","v":"CC. No.   de "}]
[]
[{"$f":"Ingreso!D74","v":"Anexo. Soporte de pago de aporte obligatorio al sistema de salud del mes de   de , soportado en la planilla de aportes "}]